Workbook

Sheet Základní údaje
A1: kolej: Rooseveltova, VŠE
A2: OBDOBÍ:
A3: 2022-08-01 | B3: 2026-07-31
A4: Identifikace subjektu podávajícího nabídku:
A5: Název subjektu:
A6: IČ:
A7: Sídlo:
A8: Zapsaná v:
D9: Předpoklad roční inflace
D10: 1. rok | E10: 2. rok | F10: 3. rok | G10: 4. rok
A11: CENA pracovní dny [Kč/hodinu/člověka]: | C11: =IF(B11<>0,B12/B11,0) -> 0 | D11: 0 | E11: 0 | F11: 0 | G11: 0
A12: CENA víkendy [Kč/hodinu/člověka]: | C12: =IF(B11<>0,(5*B11+2*B12)/7/B11,0) -> 0 | D12: 1 | E12: =1+E11 -> 1 | F12: =1+F11 -> 1 | G12: 1
D13: 1 | E13: =+D13*E12 -> 1 | F13: =+E13*F12 -> 1 | G13: 1 | H13: =SUM(D13:G13)/4 -> 1
A15: NABÍDKOVÁ CENA CELKEM ZA ZAKÁZKU: | B15: ='Rozpis úklidu'!B64:D64 -> 0

Sheet Rozpis úklidu
A1: ='Základní údaje'!A1 -> kolej: Rooseveltova, VŠE | B1: ='Základní údaje'!A2 -> OBDOBÍ: | C1: ='Základní údaje'!A3 -> 2022-08-01 | D1: ='Základní údaje'!B3 -> 2026-07-31
A2: Cena za 1 úklidovou hodinu: | B2: ='Základní údaje'!B11 -> 0 | C2: Kč/hod.
A3: Úklidová jednotka | B3: plocha [m²] | C3: kusy [-] | D3: počet úklidových jednotek | E3: CELKEM [m²] [ks] | F3: uklízí se | G3: počet úklidů | H3: sezonní týden od | I3: sezonní týden do | J3: uklízí se v pracovní dny | K3: uklízí se o víkendech | L3: Popis činnosti | M3: doporučený čas na úklidovou jednotku [min] | N3: Navrhovaný čas na úklidovou jednotku [min.] | O3: celkový čas úklidu všech úklidových jednotek [hod.] | P3: Cena za úklidovou jednotku [Kč] | Q3: cena celkem za všechny úklidové jednotky (prac. dny) [Kč] | R3: Cena celkem za období úklidu [Kč] | S3: Poznámka
A4: výtah velký | C4: 1 | D4: 1 | E4: =B4*D4+C4*D4 -> 1 | F4: denně | G4: 1 | J4: 1 | K4: 0 | L4: Úklidová činnost č. 11 | M4: 10 | O4: =IF(N4=0,M4*D4/60,N4*D4/60) -> 0.1666666667 | P4: =ROUND(IF(N4=0,M4/60*$B$2,N4/60*$B$2),0) -> 0 | Q4: =P4*D4 -> 0 | R4: =IF(F4="denně",Q4*G4*$B$60,IF(F4="týdně",Q4*G4*$B$61,IF(F4="měsíčně",Q4*G4*$B$62,IF(F4="čtvrtletně",Q4*G4*4*$B$63,IF(F4="ročně",Q4*G4*$B$63,G4*Q4*$B$63)))))*'Základní údaje'!$H$13*IF(K23=1,'Základní údaje'!$C$12,1) -> 0
A5: výtah malý | C5: 1 | D5: 1 | E5: 1 | F5: denně | G5: 1 | J5: 1 | K5: 0 | L5: Úklidová činnost č. 11 | M5: 8 | O5: 0.1333333333 | P5: 0 | Q5: =P5*D5 -> 0 | R5: =IF(F5="denně",Q5*G5*$B$60,IF(F5="týdně",Q5*G5*$B$61,IF(F5="měsíčně",Q5*G5*$B$62,IF(F5="čtvrtletně",Q5*G5*4*$B$63,IF(F5="ročně",Q5*G5*$B$63,G5*Q5*$B$63)))))*'Základní údaje'!$H$13*IF(K24=1,'Základní údaje'!$C$12,1) -> 0
A6: patro chodba 2.-6.NP | B6: 107 | D6: 5 | E6: 535 | F6: denně | G6: 1 | J6: 1 | K6: 0 | L6: Úklidová činnost č, 1 | M6: 18 | O6: 1.5 | P6: 0 | Q6: 0 | R6: =IF(F6="denně",Q6*G6*$B$60,IF(F6="týdně",Q6*G6*$B$61,IF(F6="měsíčně",Q6*G6*$B$62,IF(F6="čtvrtletně",Q6*G6*4*$B$63,IF(F6="ročně",Q6*G6*$B$63,G6*Q6*$B$63)))))*'Základní údaje'!$H$13*IF(K25=1,'Základní údaje'!$C$12,1) -> 0
A7: patro chodba 7. NP | B7: 97 | D7: 1 | E7: 97 | F7: denně | G7: 1 | J7: 1 | K7: 0 | L7: Úklidová činnost č, 1 | M7: 16 | O7: 0.2666666667 | P7: 0 | Q7: 0 | R7: =IF(F7="denně",Q7*G7*$B$60,IF(F7="týdně",Q7*G7*$B$61,IF(F7="měsíčně",Q7*G7*$B$62,IF(F7="čtvrtletně",Q7*G7*4*$B$63,IF(F7="ročně",Q7*G7*$B$63,G7*Q7*$B$63)))))*'Základní údaje'!$H$13*IF(K26=1,'Základní údaje'!$C$12,1) -> 0
A8: patro chodba 1. NP | B8: 156 | D8: 1 | E8: 156 | F8: denně | G8: 1 | J8: 1 | K8: 0 | L8: Úklidová činnost č, 1 | M8: 26 | O8: 0.4333333333 | P8: 0 | Q8: 0 | R8: =IF(F8="denně",Q8*G8*$B$60,IF(F8="týdně",Q8*G8*$B$61,IF(F8="měsíčně",Q8*G8*$B$62,IF(F8="čtvrtletně",Q8*G8*4*$B$63,IF(F8="ročně",Q8*G8*$B$63,G8*Q8*$B$63)))))*'Základní údaje'!$H$13*IF(K27=1,'Základní údaje'!$C$12,1) -> 0
A9: schodiště | B9: 40 | D9: 7 | E9: 280 | F9: denně | G9: 1 | J9: 1 | K9: 0 | L9: Úklidová činnost č, 1 | M9: 10 | O9: 1.166666667 | P9: 0 | Q9: 0 | R9: =IF(F9="denně",Q9*G9*$B$60,IF(F9="týdně",Q9*G9*$B$61,IF(F9="měsíčně",Q9*G9*$B$62,IF(F9="čtvrtletně",Q9*G9*4*$B$63,IF(F9="ročně",Q9*G9*$B$63,G9*Q9*$B$63)))))*'Základní údaje'!$H$13*IF(K28=1,'Základní údaje'!$C$12,1) -> 0
A10: tv místnost | B10: 49 | D10: 1 | E10: 49 | F10: denně | G10: 1 | J10: 1 | K10: 0 | L10: Úklidová činnost č. 3 | M10: 12 | O10: 0.2 | P10: 0 | Q10: 0 | R10: =IF(F10="denně",Q10*G10*$B$60,IF(F10="týdně",Q10*G10*$B$61,IF(F10="měsíčně",Q10*G10*$B$62,IF(F10="čtvrtletně",Q10*G10*4*$B$63,IF(F10="ročně",Q10*G10*$B$63,G10*Q10*$B$63)))))*'Základní údaje'!$H$13*IF(K33=1,'Základní údaje'!$C$12,1) -> 0
A11: posilovna | B11: 40 | D11: 1 | E11: 40 | F11: denně | G11: 1 | J11: 1 | K11: 0 | L11: Úklidová činnost č. 3 | M11: 20 | O11: 0.3333333333 | P11: 0 | Q11: 0 | R11: =IF(F11="denně",Q11*G11*$B$60,IF(F11="týdně",Q11*G11*$B$61,IF(F11="měsíčně",Q11*G11*$B$62,IF(F11="čtvrtletně",Q11*G11*4*$B$63,IF(F11="ročně",Q11*G11*$B$63,G11*Q11*$B$63)))))*'Základní údaje'!$H$13*IF(K34=1,'Základní údaje'!$C$12,1) -> 0
A12: studovna | B12: 27 | D12: 1 | E12: 27 | F12: denně | G12: 1 | J12: 1 | K12: 0 | L12: Úklidová činnost č. 3 | M12: 10 | O12: 0.1666666667 | P12: 0 | Q12: 0 | R12: =IF(F12="denně",Q12*G12*$B$60,IF(F12="týdně",Q12*G12*$B$61,IF(F12="měsíčně",Q12*G12*$B$62,IF(F12="čtvrtletně",Q12*G12*4*$B$63,IF(F12="ročně",Q12*G12*$B$63,G12*Q12*$B$63)))))*'Základní údaje'!$H$13*IF(K35=1,'Základní údaje'!$C$12,1) -> 0
A13: sušárna + prádelna | B13: 15 | D13: 1 | E13: 15 | F13: denně | G13: 1 | J13: 1 | K13: 0 | L13: Úklidová činnost č. 4 | M13: 15 | O13: 0.25 | P13: 0 | Q13: 0 | R13: =IF(F13="denně",Q13*G13*$B$60,IF(F13="týdně",Q13*G13*$B$61,IF(F13="měsíčně",Q13*G13*$B$62,IF(F13="čtvrtletně",Q13*G13*4*$B$63,IF(F13="ročně",Q13*G13*$B$63,G13*Q13*$B$63)))))*'Základní údaje'!$H$13*IF(K36=1,'Základní údaje'!$C$12,1) -> 0
A14: WC suterén | C14: 1 | D14: 2 | E14: 2 | F14: denně | G14: 1 | J14: 1 | K14: 0 | L14: Úklidová činnost č. 14 | M14: 8 | O14: 0.2666666667 | P14: 0 | Q14: 0 | R14: =IF(F14="denně",Q14*G14*$B$60,IF(F14="týdně",Q14*G14*$B$61,IF(F14="měsíčně",Q14*G14*$B$62,IF(F14="čtvrtletně",Q14*G14*4*$B$63,IF(F14="ročně",Q14*G14*$B$63,G14*Q14*$B$63)))))*'Základní údaje'!$H$13*IF(K37=1,'Základní údaje'!$C$12,1) -> 0
A15: HYGIENICKÉ ZÁZEMÍ 1. NP | B15: 35 | D15: 1 | E15: 35 | F15: denně | G15: 1 | J15: 1 | K15: 0 | L15: Úklidová činnost č. 14 a 15 | M15: 10 | O15: 0.1666666667 | P15: 0 | Q15: 0 | R15: =IF(F15="denně",Q15*G15*$B$60,IF(F15="týdně",Q15*G15*$B$61,IF(F15="měsíčně",Q15*G15*$B$62,IF(F15="čtvrtletně",Q15*G15*4*$B$63,IF(F15="ročně",Q15*G15*$B$63,G15*Q15*$B$63)))))*'Základní údaje'!$H$13*IF(K38=1,'Základní údaje'!$C$12,1) -> 0
A16: WC + sprcha 1.-7. NP | B16: 27 | D16: 14 | E16: 378 | F16: denně | G16: 1 | J16: 1 | K16: 0 | L16: Úklidová činnost č. 14 | M16: 25 | O16: 5.833333333 | P16: 0 | Q16: 0 | R16: =IF(F16="denně",Q16*G16*$B$60,IF(F16="týdně",Q16*G16*$B$61,IF(F16="měsíčně",Q16*G16*$B$62,IF(F16="čtvrtletně",Q16*G16*4*$B$63,IF(F16="ročně",Q16*G16*$B$63,G16*Q16*$B$63)))))*'Základní údaje'!$H$13*IF(K42=1,'Základní údaje'!$C$12,1) -> 0
A17: kuchyňky 1.-7. NP | B17: 11 | D17: 13 | E17: 143 | F17: denně | G17: 1 | J17: 1 | K17: 0 | L17: Úklidová činnost č. 5 | M17: 20 | O17: 4.333333333 | P17: 0 | Q17: 0 | R17: =IF(F17="denně",Q17*G17*$B$60,IF(F17="týdně",Q17*G17*$B$61,IF(F17="měsíčně",Q17*G17*$B$62,IF(F17="čtvrtletně",Q17*G17*4*$B$63,IF(F17="ročně",Q17*G17*$B$63,G17*Q17*$B$63)))))*'Základní údaje'!$H$13*IF(K43=1,'Základní údaje'!$C$12,1) -> 0
A18: obyvák | B18: 100 | D18: 1 | E18: 100 | F18: týdně | G18: 1 | J18: 1 | K18: 0 | L18: Úklidová činnost č. 3 | M18: 40 | O18: 0.6666666667 | P18: 0 | Q18: 0 | R18: =IF(F18="denně",Q18*G18*$B$60,IF(F18="týdně",Q18*G18*$B$61,IF(F18="měsíčně",Q18*G18*$B$62,IF(F18="čtvrtletně",Q18*G18*4*$B$63,IF(F18="ročně",Q18*G18*$B$63,G18*Q18*$B$63)))))*'Základní údaje'!$H$13*IF(K44=1,'Základní údaje'!$C$12,1) -> 0
A19: herní místnost | B19: 50 | D19: 1 | E19: 50 | F19: týdně | G19: 1 | J19: 1 | K19: 0 | L19: Úklidová činnost č. 3 | M19: 30 | O19: 0.5 | P19: 0 | Q19: 0 | R19: =IF(F19="denně",Q19*G19*$B$60,IF(F19="týdně",Q19*G19*$B$61,IF(F19="měsíčně",Q19*G19*$B$62,IF(F19="čtvrtletně",Q19*G19*4*$B$63,IF(F19="ročně",Q19*G19*$B$63,G19*Q19*$B$63)))))*'Základní údaje'!$H$13*IF(K46=1,'Základní údaje'!$C$12,1) -> 0
A20: výtah velký - týdení úklid | C20: 1 | D20: 1 | E20: 1 | F20: týdně | G20: 1 | J20: 1 | K20: 0 | L20: Úklidová činnost č. 11 | M20: 15 | O20: 0.25 | P20: 0 | Q20: 0 | R20: =IF(F20="denně",Q20*G20*$B$60,IF(F20="týdně",Q20*G20*$B$61,IF(F20="měsíčně",Q20*G20*$B$62,IF(F20="čtvrtletně",Q20*G20*4*$B$63,IF(F20="ročně",Q20*G20*$B$63,G20*Q20*$B$63)))))*'Základní údaje'!$H$13*IF(K47=1,'Základní údaje'!$C$12,1) -> 0
A21: výtah malý - týdenní úklid | C21: 1 | D21: 1 | E21: 1 | F21: týdně | G21: 1 | J21: 1 | K21: 0 | L21: Úklidová činnost č. 11 | M21: 12 | O21: 0.2 | P21: 0 | Q21: 0 | R21: =IF(F21="denně",Q21*G21*$B$60,IF(F21="týdně",Q21*G21*$B$61,IF(F21="měsíčně",Q21*G21*$B$62,IF(F21="čtvrtletně",Q21*G21*4*$B$63,IF(F21="ročně",Q21*G21*$B$63,G21*Q21*$B$63)))))*'Základní údaje'!$H$13*IF(K48=1,'Základní údaje'!$C$12,1) -> 0
A22: přilehlé zábradlí | C22: 1 | D22: 21 | E22: 21 | F22: týdně | G22: 1 | J22: 1 | K22: 0 | L22: otřít zabradlí a parapet a utřít prach, odstranit pavučiny | M22: 8 | O22: 2.8 | P22: 0 | Q22: 0 | R22: =IF(F22="denně",Q22*G22*$B$60,IF(F22="týdně",Q22*G22*$B$61,IF(F22="měsíčně",Q22*G22*$B$62,IF(F22="čtvrtletně",Q22*G22*4*$B$63,IF(F22="ročně",Q22*G22*$B$63,G22*Q22*$B$63)))))*'Základní údaje'!$H$13*IF(K49=1,'Základní údaje'!$C$12,1) -> 0
A23: tělocvična | B23: 81 | D23: 1 | E23: 81 | F23: týdně | G23: 1 | J23: 1 | K23: 0 | L23: Úklidová činnost č. 3 | M23: 30 | O23: 0.5 | P23: 0 | Q23: 0 | R23: =IF(F23="denně",Q23*G23*$B$60,IF(F23="týdně",Q23*G23*$B$61,IF(F23="měsíčně",Q23*G23*$B$62,IF(F23="čtvrtletně",Q23*G23*4*$B$63,IF(F23="ročně",Q23*G23*$B$63,G23*Q23*$B$63)))))*'Základní údaje'!$H$13*IF(K50=1,'Základní údaje'!$C$12,1) -> 0
A24: místnost úklízeček a úklid.prost. | B24: 15 | D24: 1 | E24: 15 | F24: týdně | G24: 1 | J24: 1 | K24: 0 | L24: Úklidová činnost č. 3 | M24: 15 | O24: 0.25 | P24: 0 | Q24: 0 | R24: =IF(F24="denně",Q24*G24*$B$60,IF(F24="týdně",Q24*G24*$B$61,IF(F24="měsíčně",Q24*G24*$B$62,IF(F24="čtvrtletně",Q24*G24*4*$B$63,IF(F24="ročně",Q24*G24*$B$63,G24*Q24*$B$63)))))*'Základní údaje'!$H$13*IF(K51=1,'Základní údaje'!$C$12,1) -> 0
A25: uklízečky soc. zařízení | B25: 5 | D25: 1 | E25: 5 | F25: týdně | G25: 3 | J25: 1 | K25: 0 | L25: Úklidová činnost č. 14 a 15 | M25: 3 | O25: 0.05 | P25: 0 | Q25: 0 | R25: =IF(F25="denně",Q25*G25*$B$60,IF(F25="týdně",Q25*G25*$B$61,IF(F25="měsíčně",Q25*G25*$B$62,IF(F25="čtvrtletně",Q25*G25*4*$B$63,IF(F25="ročně",Q25*G25*$B$63,G25*Q25*$B$63)))))*'Základní údaje'!$H$13*IF(K45=1,'Základní údaje'!$C$12,1) -> 0
A26: balkon | B26: 4 | D26: 18 | E26: 72 | F26: týdně | G26: 1 | J26: 1 | K26: 0 | L26: Úklidová činnost č. 2 | M26: 7 | O26: 2.1 | P26: 0 | Q26: 0 | R26: =IF(F26="denně",Q26*G26*$B$60,IF(F26="týdně",Q26*G26*$B$61,IF(F26="měsíčně",Q26*G26*$B$62,IF(F26="čtvrtletně",Q26*G26*4*$B$63,IF(F26="ročně",Q26*G26*$B$63,G26*Q26*$B$63)))))*'Základní údaje'!$H$13*IF(K52=1,'Základní údaje'!$C$12,1) -> 0
A27: dvoulůžkový pokoj- buňka - HOTEL | B27: 15 | D27: 4 | E27: 60 | F27: týdně | G27: 1 | J27: 1 | K27: 1 | L27: Úklidová činnost č. 8 | M27: 30 | O27: 2 | P27: 0 | Q27: 0 | R27: =IF(F27="denně",Q27*G27*$B$60,IF(F27="týdně",Q27*G27*$B$61,IF(F27="měsíčně",Q27*G27*$B$62,IF(F27="čtvrtletně",Q27*G27*4*$B$63,IF(F27="ročně",Q27*G27*$B$63,G27*Q27*$B$63)))))*'Základní údaje'!$H$13*IF(K53=1,'Základní údaje'!$C$12,1) -> 0
A28: jedolůžkový pokoj- buňka - HOTEL | B28: 12 | D28: 1 | E28: 12 | F28: týdně | G28: 1 | J28: 1 | K28: 1 | L28: Úklidová činnost č. 8 | M28: 25 | O28: 0.4166666667 | P28: 0 | Q28: 0 | R28: =IF(F28="denně",Q28*G28*$B$60,IF(F28="týdně",Q28*G28*$B$61,IF(F28="měsíčně",Q28*G28*$B$62,IF(F28="čtvrtletně",Q28*G28*4*$B$63,IF(F28="ročně",Q28*G28*$B$63,G28*Q28*$B$63)))))*'Základní údaje'!$H$13*IF(K54=1,'Základní údaje'!$C$12,1) -> 0
A29: třílůžkový pokoj- buňka - HOTEL | B29: 23 | D29: 1 | E29: =B29*D29+C29*D29 -> 23 | F29: týdně | G29: 1 | J29: 1 | K29: 1 | L29: Úklidová činnost č. 8 | M29: 35 | O29: =IF(N29=0,M29*D29/60,N29*D29/60) -> 0.5833333333 | P29: =ROUND(IF(N29=0,M29/60*$B$2,N29/60*$B$2),0) -> 0 | Q29: =P29*D29 -> 0 | R29: =IF(F29="denně",Q29*G29*$B$60,IF(F29="týdně",Q29*G29*$B$61,IF(F29="měsíčně",Q29*G29*$B$62,IF(F29="čtvrtletně",Q29*G29*4*$B$63,IF(F29="ročně",Q29*G29*$B$63,G29*Q29*$B$63)))))*'Základní údaje'!$H$13*IF(K55=1,'Základní údaje'!$C$12,1) -> 0
A30: dvoulůžkový pokoj- buňka - HOTEL | B30: 15 | D30: 4 | E30: =B30*D30+C30*D30 -> 60 | F30: týdně | G30: 1 | J30: 1 | K30: 1 | L30: Úklidová činnost č. 9 | M30: 10 | O30: =IF(N30=0,M30*D30/60,N30*D30/60) -> 0.6666666667 | P30: =ROUND(IF(N30=0,M30/60*$B$2,N30/60*$B$2),0) -> 0 | Q30: =P30*D30 -> 0 | R30: =IF(F30="denně",Q30*G30*$B$60,IF(F30="týdně",Q30*G30*$B$61,IF(F30="měsíčně",Q30*G30*$B$62,IF(F30="čtvrtletně",Q30*G30*4*$B$63,IF(F30="ročně",Q30*G30*$B$63,G30*Q30*$B$63)))))*'Základní údaje'!$H$13*IF(K55=1,'Základní údaje'!$C$12,1) -> 0
A31: jedolůžkový pokoj- buňka - HOTEL | B31: 12 | D31: 1 | E31: 12 | F31: týdně | G31: 1 | J31: 1 | K31: 1 | L31: Úklidová činnost č. 9 | M31: 8 | O31: 0.1333333333 | P31: 0 | Q31: 0 | R31: =IF(F31="denně",Q31*G31*$B$60,IF(F31="týdně",Q31*G31*$B$61,IF(F31="měsíčně",Q31*G31*$B$62,IF(F31="čtvrtletně",Q31*G31*4*$B$63,IF(F31="ročně",Q31*G31*$B$63,G31*Q31*$B$63)))))*'Základní údaje'!$H$13*IF(K56=1,'Základní údaje'!$C$12,1) -> 0
A32: třílůžkový pokoj- buňka - HOTEL | B32: 23 | D32: 1 | E32: =B32*D32+C32*D32 -> 23 | F32: týdně | G32: 1 | J32: 1 | K32: 1 | L32: Úklidová činnost č. 9 | M32: 11 | O32: =IF(N32=0,M32*D32/60,N32*D32/60) -> 0.1833333333 | P32: =ROUND(IF(N32=0,M32/60*$B$2,N32/60*$B$2),0) -> 0 | Q32: =P32*D32 -> 0 | R32: =IF(F32="denně",Q32*G32*$B$60,IF(F32="týdně",Q32*G32*$B$61,IF(F32="měsíčně",Q32*G32*$B$62,IF(F32="čtvrtletně",Q32*G32*4*$B$63,IF(F32="ročně",Q32*G32*$B$63,G32*Q32*$B$63)))))*'Základní údaje'!$H$13*IF(K57=1,'Základní údaje'!$C$12,1) -> 0
A33: chodba+kuchyňka- buňka - HOTEL | B33: 6 | D33: 1 | E33: 6 | F33: týdně | G33: 1 | J33: 1 | K33: 1 | L33: Úklidová činnost č. 5 | M33: 20 | O33: 0.3333333333 | P33: 0 | Q33: 0 | R33: =IF(F33="denně",Q33*G33*$B$60,IF(F33="týdně",Q33*G33*$B$61,IF(F33="měsíčně",Q33*G33*$B$62,IF(F33="čtvrtletně",Q33*G33*4*$B$63,IF(F33="ročně",Q33*G33*$B$63,G33*Q33*$B$63)))))*'Základní údaje'!$H$13*IF(K55=1,'Základní údaje'!$C$12,1) -> 0
A34: sprcha - buňka - HOTEL | B34: 2 | D34: 4 | E34: 8 | F34: týdně | G34: 1 | J34: 1 | K34: 1 | L34: Úklidová činnost č. 15 | M34: 7 | O34: 0.4666666667 | P34: 0 | Q34: 0 | R34: =IF(F34="denně",Q34*G34*$B$60,IF(F34="týdně",Q34*G34*$B$61,IF(F34="měsíčně",Q34*G34*$B$62,IF(F34="čtvrtletně",Q34*G34*4*$B$63,IF(F34="ročně",Q34*G34*$B$63,G34*Q34*$B$63)))))*'Základní údaje'!$H$13*IF(K56=1,'Základní údaje'!$C$12,1) -> 0
A35: WC - buňka - HOTEL | B35: 2 | D35: 4 | E35: 8 | F35: týdně | G35: 1 | J35: 1 | K35: 1 | L35: Úklidová činnost č. 14 | M35: 10 | O35: 0.6666666667 | P35: 0 | Q35: 0 | R35: =IF(F35="denně",Q35*G35*$B$60,IF(F35="týdně",Q35*G35*$B$61,IF(F35="měsíčně",Q35*G35*$B$62,IF(F35="čtvrtletně",Q35*G35*4*$B$63,IF(F35="ročně",Q35*G35*$B$63,G35*Q35*$B$63)))))*'Základní údaje'!$H$13*IF(K57=1,'Základní údaje'!$C$12,1) -> 0
A36: jednolůžkový samostatný - HOTEL | B36: 10 | D36: 1 | E36: 10 | F36: týdně | G36: 1 | J36: 1 | K36: 1 | L36: Úklidová činnost č. 8 | M36: 17 | O36: 0.2833333333 | P36: 0 | Q36: 0 | R36: =IF(F36="denně",Q36*G36*$B$60,IF(F36="týdně",Q36*G36*$B$61,IF(F36="měsíčně",Q36*G36*$B$62,IF(F36="čtvrtletně",Q36*G36*4*$B$63,IF(F36="ročně",Q36*G36*$B$63,G36*Q36*$B$63)))))*'Základní údaje'!$H$13*IF(K58=1,'Základní údaje'!$C$12,1) -> 0
A37: dvoulůžkový samostatný - HOTEL | B37: 15 | D37: 2 | E37: 30 | F37: týdně | G37: 1 | J37: 1 | K37: 1 | L37: Úklidová činnost č. 8 | M37: 25 | O37: 0.8333333333 | P37: 0 | Q37: 0 | R37: =IF(F37="denně",Q37*G37*$B$60,IF(F37="týdně",Q37*G37*$B$61,IF(F37="měsíčně",Q37*G37*$B$62,IF(F37="čtvrtletně",Q37*G37*4*$B$63,IF(F37="ročně",Q37*G37*$B$63,G37*Q37*$B$63)))))*'Základní údaje'!$H$13*IF(K56=1,'Základní údaje'!$C$12,1) -> 0
A38: trojlůžkový samostatný - HOTEL | B38: 26 | D38: 1 | E38: 0 | F38: týdně | G38: 1 | J38: 1 | K38: 1 | L38: Úklidová činnost č. 8 | M38: 43 | O38: 0.7166666667 | P38: 0 | Q38: 0 | R38: =IF(F38="denně",Q38*G38*$B$60,IF(F38="týdně",Q38*G38*$B$61,IF(F38="měsíčně",Q38*G38*$B$62,IF(F38="čtvrtletně",Q38*G38*4*$B$63,IF(F38="ročně",Q38*G38*$B$63,G38*Q38*$B$63)))))*'Základní údaje'!$H$13*IF(K57=1,'Základní údaje'!$C$12,1) -> 0
A39: jednolůžkový samostatný - HOTEL | B39: 10 | D39: 1 | E39: =B39*D39+C39*D39 -> 10 | F39: týdně | G39: 1 | J39: 1 | K39: 1 | L39: Úklidová činnost č. 9 | M39: 5 | O39: =IF(N39=0,M39*D39/60,N39*D39/60) -> 0.08333333333 | P39: =ROUND(IF(N39=0,M39/60*$B$2,N39/60*$B$2),0) -> 0 | Q39: =P39*D39 -> 0 | R39: =IF(F39="denně",Q39*G39*$B$60,IF(F39="týdně",Q39*G39*$B$61,IF(F39="měsíčně",Q39*G39*$B$62,IF(F39="čtvrtletně",Q39*G39*4*$B$63,IF(F39="ročně",Q39*G39*$B$63,G39*Q39*$B$63)))))*'Základní údaje'!$H$13*IF(K57=1,'Základní údaje'!$C$12,1) -> 0
A40: dvoulůžkový samostatný - HOTEL | B40: 15 | D40: 2 | E40: 30 | F40: týdně | G40: 1 | J40: 1 | K40: 1 | L40: Úklidová činnost č. 9 | M40: 10 | O40: 0.3333333333 | P40: 0 | Q40: 0 | R40: =IF(F40="denně",Q40*G40*$B$60,IF(F40="týdně",Q40*G40*$B$61,IF(F40="měsíčně",Q40*G40*$B$62,IF(F40="čtvrtletně",Q40*G40*4*$B$63,IF(F40="ročně",Q40*G40*$B$63,G40*Q40*$B$63)))))*'Základní údaje'!$H$13*IF(K59=1,'Základní údaje'!$C$12,1) -> 0
A41: trojlůžkový samostatný - HOTEL | B41: 26 | D41: 1 | E41: 0 | F41: týdně | G41: 1 | J41: 1 | K41: 1 | L41: Úklidová činnost č. 9 | M41: 11 | O41: 0.1833333333 | P41: 0 | Q41: 0 | R41: =IF(F41="denně",Q41*G41*$B$60,IF(F41="týdně",Q41*G41*$B$61,IF(F41="měsíčně",Q41*G41*$B$62,IF(F41="čtvrtletně",Q41*G41*4*$B$63,IF(F41="ročně",Q41*G41*$B$63,G41*Q41*$B$63)))))*'Základní údaje'!$H$13*IF(K60=1,'Základní údaje'!$C$12,1) -> 0
A42: kanceláře+zázemí | B42: 41 | D42: 1 | E42: =B42*D42+C42*D42 -> 41 | F42: měsíčně | G42: 1 | J42: 1 | K42: 0 | L42: Úklidová činnost č. 3 | M42: 10 | O42: 0.1666666667 | P42: 0 | Q42: 0 | R42: =IF(F42="denně",Q42*G42*$B$60,IF(F42="týdně",Q42*G42*$B$61,IF(F42="měsíčně",Q42*G42*$B$62,IF(F42="čtvrtletně",Q42*G42*4*$B$63,IF(F42="ročně",Q42*G42*$B$63,G42*Q42*$B$63)))))*'Základní údaje'!$H$13*IF(K58=1,'Základní údaje'!$C$12,1) -> 0
A43: sklad lůžkovin | B43: 23 | D43: 1 | E43: 23 | F43: měsíčně | G43: 1 | J43: 1 | K43: 0 | L43: Úklidová činnost č. 3 | M43: 6 | O43: =IF(N43=0,M43*D43/60,N43*D43/60) -> 0.1 | P43: =ROUND(IF(N43=0,M43/60*$B$2,N43/60*$B$2),0) -> 0 | Q43: =P43*D43 -> 0 | R43: =IF(F43="denně",Q43*G43*$B$60,IF(F43="týdně",Q43*G43*$B$61,IF(F43="měsíčně",Q43*G43*$B$62,IF(F43="čtvrtletně",Q43*G43*4*$B$63,IF(F43="ročně",Q43*G43*$B$63,G43*Q43*$B$63)))))*'Základní údaje'!$H$13*IF(K59=1,'Základní údaje'!$C$12,1) -> 0
A44: sklad- čistící prostředky | B44: 30 | D44: 1 | E44: 30 | F44: měsíčně | G44: 1 | J44: 1 | K44: 0 | L44: Úklidová činnost č. 3 | M44: 8 | O44: 0.1333333333 | P44: 0 | Q44: 0 | R44: =IF(F44="denně",Q44*G44*$B$60,IF(F44="týdně",Q44*G44*$B$61,IF(F44="měsíčně",Q44*G44*$B$62,IF(F44="čtvrtletně",Q44*G44*4*$B$63,IF(F44="ročně",Q44*G44*$B$63,G44*Q44*$B$63)))))*'Základní údaje'!$H$13*IF(K60=1,'Základní údaje'!$C$12,1) -> 0
A45: Okna (různé velikosti) | C45: 1 | D45: =108+115+40+8+13+39 -> 323 | E45: =B45*D45+C45*D45 -> 323 | F45: ročně | G45: 1 | J45: 1 | K45: 0 | L45: Úklidová činnost č. 12 | M45: 20 | O45: =IF(N45=0,M45*D45/60,N45*D45/60) -> 107.6666667 | P45: =ROUND(IF(N45=0,M45/60*$B$2,N45/60*$B$2),0) -> 0 | Q45: =P45*D45 -> 0 | R45: =IF(F45="denně",Q45*G45*$B$60,IF(F45="týdně",Q45*G45*$B$61,IF(F45="měsíčně",Q45*G45*$B$62,IF(F45="čtvrtletně",Q45*G45*4*$B$63,IF(F45="ročně",Q45*G45*$B$63,G45*Q45*$B$63)))))*'Základní údaje'!$H$13*IF(K67=1,'Základní údaje'!$C$12,1) -> 0
A46: jednolůžkový pokoj (buňka) | B46: 12 | D46: 5 | E46: 60 | F46: sezonně | G46: 2 | H46: 26 | I46: 37 | J46: 1 | K46: 0 | L46: Úklidová činnost č. 6 | M46: 20 | O46: 1.666666667 | P46: 0 | Q46: 0 | R46: =IF(F46="denně",Q46*G46*$B$60,IF(F46="týdně",Q46*G46*$B$61,IF(F46="měsíčně",Q46*G46*$B$62,IF(F46="čtvrtletně",Q46*G46*4*$B$63,IF(F46="ročně",Q46*G46*$B$63,G46*Q46*$B$63)))))*'Základní údaje'!$H$13*IF(K61=1,'Základní údaje'!$C$12,1) -> 0
A47: dvoulůžkový pokoj (buňka) | B47: 15 | D47: 38 | E47: 570 | F47: sezonně | G47: 2 | H47: 26 | I47: 37 | J47: 1 | K47: 0 | L47: Úklidová činnost č. 6 | M47: 25 | O47: 15.83333333 | P47: 0 | Q47: 0 | R47: =IF(F47="denně",Q47*G47*$B$60,IF(F47="týdně",Q47*G47*$B$61,IF(F47="měsíčně",Q47*G47*$B$62,IF(F47="čtvrtletně",Q47*G47*4*$B$63,IF(F47="ročně",Q47*G47*$B$63,G47*Q47*$B$63)))))*'Základní údaje'!$H$13*IF(K62=1,'Základní údaje'!$C$12,1) -> 0
A48: třílůžkový pokoj (buňka) | B48: 23 | D48: 37 | E48: 851 | F48: sezonně | G48: 2 | H48: 26 | I48: 37 | J48: 1 | K48: 0 | L48: Úklidová činnost č. 6 | M48: 38 | O48: =IF(N48=0,M48*D48/60,N48*D48/60) -> 23.43333333 | P48: =ROUND(IF(N48=0,M48/60*$B$2,N48/60*$B$2),0) -> 0 | Q48: 0 | R48: =IF(F48="denně",Q48*G48*$B$60,IF(F48="týdně",Q48*G48*$B$61,IF(F48="měsíčně",Q48*G48*$B$62,IF(F48="čtvrtletně",Q48*G48*4*$B$63,IF(F48="ročně",Q48*G48*$B$63,G48*Q48*$B$63)))))*'Základní údaje'!$H$13*IF(K63=1,'Základní údaje'!$C$12,1) -> 0
A49: chodba + kuchyňka - buňka | B49: 6 | D49: 38 | E49: 228 | F49: sezonně | G49: 2 | H49: 26 | I49: 37 | J49: 1 | K49: 0 | L49: Úklidová činnost č. 5 | M49: 30 | O49: 19 | P49: 0 | Q49: 0 | R49: =IF(F49="denně",Q49*G49*$B$60,IF(F49="týdně",Q49*G49*$B$61,IF(F49="měsíčně",Q49*G49*$B$62,IF(F49="čtvrtletně",Q49*G49*4*$B$63,IF(F49="ročně",Q49*G49*$B$63,G49*Q49*$B$63)))))*'Základní údaje'!$H$13*IF(K64=1,'Základní údaje'!$C$12,1) -> 0
A50: sprcha - buňka | B50: 2 | D50: 38 | E50: 76 | F50: sezonně | G50: 2 | H50: 26 | I50: 37 | J50: 1 | K50: 0 | L50: Úklidová činnost č. 15 | M50: 7 | O50: 4.433333333 | P50: 0 | Q50: 0 | R50: =IF(F50="denně",Q50*G50*$B$60,IF(F50="týdně",Q50*G50*$B$61,IF(F50="měsíčně",Q50*G50*$B$62,IF(F50="čtvrtletně",Q50*G50*4*$B$63,IF(F50="ročně",Q50*G50*$B$63,G50*Q50*$B$63)))))*'Základní údaje'!$H$13*IF(K65=1,'Základní údaje'!$C$12,1) -> 0
A51: WC - buňka | C51: 1 | D51: 38 | E51: 38 | F51: sezonně | G51: 2 | H51: 26 | I51: 37 | J51: 1 | K51: 0 | L51: Úklidová činnost č. 14 | M51: 8 | O51: 5.066666667 | P51: 0 | Q51: 0 | R51: =IF(F51="denně",Q51*G51*$B$60,IF(F51="týdně",Q51*G51*$B$61,IF(F51="měsíčně",Q51*G51*$B$62,IF(F51="čtvrtletně",Q51*G51*4*$B$63,IF(F51="ročně",Q51*G51*$B$63,G51*Q51*$B$63)))))*'Základní údaje'!$H$13*IF(K66=1,'Základní údaje'!$C$12,1) -> 0
A52: jednolůžkový samostatný | B52: 10 | D52: 12 | E52: 120 | F52: sezonně | G52: 2 | H52: 26 | I52: 37 | J52: 1 | K52: 0 | L52: Úklidová činnopst č. 6 | M52: 33 | O52: 6.6 | P52: 0 | Q52: 0 | R52: =IF(F52="denně",Q52*G52*$B$60,IF(F52="týdně",Q52*G52*$B$61,IF(F52="měsíčně",Q52*G52*$B$62,IF(F52="čtvrtletně",Q52*G52*4*$B$63,IF(F52="ročně",Q52*G52*$B$63,G52*Q52*$B$63)))))*'Základní údaje'!$H$13*IF(K68=1,'Základní údaje'!$C$12,1) -> 0
A53: dvoulůžkový samostatný | B53: 15 | D53: 53 | E53: 795 | F53: sezonně | G53: 2 | H53: 26 | I53: 37 | J53: 1 | K53: 0 | L53: Úklidová činnopst č. 6 | M53: 50 | O53: 44.16666667 | P53: 0 | Q53: 0 | R53: =IF(F53="denně",Q53*G53*$B$60,IF(F53="týdně",Q53*G53*$B$61,IF(F53="měsíčně",Q53*G53*$B$62,IF(F53="čtvrtletně",Q53*G53*4*$B$63,IF(F53="ročně",Q53*G53*$B$63,G53*Q53*$B$63)))))*'Základní údaje'!$H$13*IF(K69=1,'Základní údaje'!$C$12,1) -> 0
A54: trojlůžkový samostatný | B54: 26 | D54: 6 | E54: 156 | F54: sezonně | G54: 2 | H54: 26 | I54: 37 | J54: 1 | K54: 0 | L54: Úklidová činnopst č. 6 | M54: 87 | O54: 8.7 | P54: 0 | Q54: 0 | R54: =IF(F54="denně",Q54*G54*$B$60,IF(F54="týdně",Q54*G54*$B$61,IF(F54="měsíčně",Q54*G54*$B$62,IF(F54="čtvrtletně",Q54*G54*4*$B$63,IF(F54="ročně",Q54*G54*$B$63,G54*Q54*$B$63)))))*'Základní údaje'!$H$13*IF(K70=1,'Základní údaje'!$C$12,1) -> 0
A55: přebrání pokoje po ubytovaných | C55: 1 | D55: 173 | E55: 173 | F55: sezonně | G55: 2 | H55: 26 | I55: 37 | J55: 1 | K55: 0 | L55: Úklidová činnost č. 10 | M55: 6 | O55: 17.3 | P55: 0 | Q55: 0 | R55: =IF(F55="denně",Q55*G55*$B$60,IF(F55="týdně",Q55*G55*$B$61,IF(F55="měsíčně",Q55*G55*$B$62,IF(F55="čtvrtletně",Q55*G55*4*$B$63,IF(F55="ročně",Q55*G55*$B$63,G55*Q55*$B$63)))))*'Základní údaje'!$H$13*IF(K71=1,'Základní údaje'!$C$12,1) -> 0
A56: terasa | B56: 77 | D56: 1 | E56: 77 | F56: sezonně | G56: =(I56-H56+1)*2 -> 60 | H56: 12 | I56: 41 | J56: 1 | L56: zamést podlahu, vynést odpadky, umýt dveře včetně zárubní, otřít a urovnat nábytek | M56: 40 | O56: 0.6666666667 | P56: 0 | Q56: 0 | R56: =IF(F56="denně",Q56*G56*$B$60,IF(F56="týdně",Q56*G56*$B$61,IF(F56="měsíčně",Q56*G56*$B$62,IF(F56="čtvrtletně",Q56*G56*4*$B$63,IF(F56="ročně",Q56*G56*$B$63,G56*Q56*$B$63)))))*'Základní údaje'!$H$13*IF(K75=1,'Základní údaje'!$C$12,1) -> 0
A58: Plocha celkem | B58: =SUMPRODUCT(B4:B56,D4:D56) -> 5449 | C58: [m²]
A59: Počet kusů celkem | B59: =SUMPRODUCT(C4:C56,D4:D56) -> 561 | C59: [-]
A60: Počet pracovních dnů úklidu: | B60: =NETWORKDAYS($C$1,$D$1,$A$70:$A$136) -> 1014 | L60: =NETWORKDAYS(J60,K60,J61) -> 0
A61: Počet týdnů úklidu: | B61: =B63*52 -> 208
A62: Počet měsíců úklidu: | B62: =B63*12 -> 48
A63: Počet let úklidu | B63: =YEAR(D1)-YEAR(C1) -> 4
A64: CENA CELKEM: | B64: =ROUND(SUM(R4:R56),0) -> 0 | E64: [Kč]
A69: svátky: | B69: četnost úklidu | C69: označení | D69: období úklidu | G69: Kritéria
A70: 2019-01-01 | B70: denně | C70: 0 | D70: 1. Q | G70: =$F$3 -> uklízí se
A71: 2019-04-19 | B71: týdně | C71: 1 | D71: 2. Q | G71: =B70 -> denně
A72: 2019-04-22 | B72: měsíčně | D72: 3. Q
A73: 2019-05-01 | B73: čtvrtletně | D73: 4. Q | G73: =$F$3 -> uklízí se
A74: 2019-05-08 | B74: ročně | D74: leden | G74: =B71 -> týdně
A75: 2019-07-05 | B75: sezonně | D75: únor
A76: 2019-10-28 | D76: březen | G76: =$F$3 -> uklízí se
A77: 2019-12-24 | D77: duben | G77: =B72 -> měsíčně
A78: 2019-12-25 | D78: květen
A79: 2019-12-26 | D79: červen | G79: =$F$3 -> uklízí se
A80: 2020-01-01 | D80: červenec | G80: =B73 -> čtvrtletně
A81: 2020-04-10 | D81: srpen
A82: 2020-04-13 | D82: září | G82: =$F$3 -> uklízí se
A83: 2020-05-01 | D83: říjen | G83: =B74 -> ročně
A84: 2020-05-08 | D84: listopat
A85: 2020-07-06 | D85: prosinec
A86: 2020-09-28
A87: 2020-10-28
A88: 2020-11-17
A89: 2020-12-24
A90: 2020-12-25
A91: 2021-01-01
A92: 2021-04-02
A93: 2021-04-05
A94: 2021-07-05
A95: 2021-07-06
A96: 2021-09-28
A97: 2021-10-28
A98: 2021-11-17
A99: 2021-12-24
A100: 2022-04-15
A101: 2022-04-18
A102: 2022-07-05
A103: 2022-07-06
A104: 2022-09-28
A105: 2022-10-28
A106: 2022-11-17
A107: 2022-12-26
A108: 2023-04-07
A109: 2023-04-10
A110: 2023-05-01
A111: 2023-05-08
A112: 2023-07-05
A113: 2023-07-06
A114: 2023-09-28
A115: 2023-11-17
A116: 2023-12-25
A117: 2023-12-26
A118: 2024-01-01
A119: 2024-03-29
A120: 2024-04-01
A121: 2024-05-01
A122: 2024-05-08
A123: 2024-07-05
A124: 2024-10-28
A125: 2024-12-24
A126: 2024-12-26
A127: 2024-12-26
A128: 2025-01-01
A129: 2025-04-18
A130: 2025-04-21
A131: 2025-10-28
A132: 2025-11-17
A133: 2025-12-24
A134: 2025-12-25
A135: 2025-12-26

Sheet Karty úklidu
A1: V komentáři jsou zkatky pro tisk
A2: Karta úklidu | D2: ='Rozpis úklidu'!$A$1 -> kolej: Rooseveltova, VŠE
A3: DENNÍ ÚKLID DNE: | B3: =NOW() -> 2022-03-30T08:13:07.050
A4: ='Rozpis úklidu'!$A$3 -> Úklidová jednotka | B4: ='Rozpis úklidu'!$D$3 -> počet úklidových jednotek | C4: Doba úklidu [hod.] | D4: ='Rozpis úklidu'!$L$3 -> Popis činnosti | E4: ='Rozpis úklidu'!$Q$3 -> cena celkem za všechny úklidové jednotky (prac. dny) [Kč] | F4: Správně uklizené jednotky | G4: Smluvní pokuta [Kč] | H4: Poznámka
A5: ='Rozpis úklidu'!A4 -> výtah velký | B5: ='Rozpis úklidu'!D4*'Rozpis úklidu'!G4 -> 1 | C5: =IF('Rozpis úklidu'!N4=0,'Rozpis úklidu'!M4*B5/60,'Rozpis úklidu'!N4*B5/60) -> 0.1666666667 | D5: ='Rozpis úklidu'!L4 -> Úklidová činnost č. 11 | E5: ='Rozpis úklidu'!P4*F5 -> 0 | F5: =B5 -> 1 | G5: =IF(F5<B5,(B5-F5)*('Rozpis úklidu'!P4)*2,0) -> 0
A6: ='Rozpis úklidu'!A5 -> výtah malý | B6: ='Rozpis úklidu'!D5*'Rozpis úklidu'!G5 -> 1 | C6: =IF('Rozpis úklidu'!N5=0,'Rozpis úklidu'!M5*B6/60,'Rozpis úklidu'!N5*B6/60) -> 0.1333333333 | D6: ='Rozpis úklidu'!L5 -> Úklidová činnost č. 11 | E6: ='Rozpis úklidu'!P5*F6 -> 0 | F6: =B6 -> 1 | G6: =IF(F6<B6,(B6-F6)*('Rozpis úklidu'!P5)*2,0) -> 0
A7: ='Rozpis úklidu'!A6 -> patro chodba 2.-6.NP | B7: ='Rozpis úklidu'!D6*'Rozpis úklidu'!G6 -> 5 | C7: =IF('Rozpis úklidu'!N6=0,'Rozpis úklidu'!M6*B7/60,'Rozpis úklidu'!N6*B7/60) -> 1.5 | D7: ='Rozpis úklidu'!L6 -> Úklidová činnost č, 1 | E7: ='Rozpis úklidu'!P6*F7 -> 0 | F7: 5 | G7: =IF(F7<B7,(B7-F7)*('Rozpis úklidu'!P6)*2,0) -> 0
A8: ='Rozpis úklidu'!A7 -> patro chodba 7. NP | B8: ='Rozpis úklidu'!D7*'Rozpis úklidu'!G7 -> 1 | C8: =IF('Rozpis úklidu'!N7=0,'Rozpis úklidu'!M7*B8/60,'Rozpis úklidu'!N7*B8/60) -> 0.2666666667 | D8: ='Rozpis úklidu'!L7 -> Úklidová činnost č, 1 | E8: ='Rozpis úklidu'!P7*F8 -> 0 | F8: 1 | G8: =IF(F8<B8,(B8-F8)*('Rozpis úklidu'!P7)*2,0) -> 0
A9: ='Rozpis úklidu'!A8 -> patro chodba 1. NP | B9: ='Rozpis úklidu'!D8*'Rozpis úklidu'!G8 -> 1 | C9: =IF('Rozpis úklidu'!N8=0,'Rozpis úklidu'!M8*B9/60,'Rozpis úklidu'!N8*B9/60) -> 0.4333333333 | D9: ='Rozpis úklidu'!L8 -> Úklidová činnost č, 1 | E9: ='Rozpis úklidu'!P8*F9 -> 0 | F9: 1 | G9: =IF(F9<B9,(B9-F9)*('Rozpis úklidu'!P8)*2,0) -> 0
A10: ='Rozpis úklidu'!A9 -> schodiště | B10: ='Rozpis úklidu'!D9*'Rozpis úklidu'!G9 -> 7 | C10: =IF('Rozpis úklidu'!N9=0,'Rozpis úklidu'!M9*B10/60,'Rozpis úklidu'!N9*B10/60) -> 1.166666667 | D10: ='Rozpis úklidu'!L9 -> Úklidová činnost č, 1 | E10: ='Rozpis úklidu'!P9*F10 -> 0 | F10: 7 | G10: =IF(F10<B10,(B10-F10)*('Rozpis úklidu'!P9)*2,0) -> 0
A11: ='Rozpis úklidu'!A10 -> tv místnost | B11: ='Rozpis úklidu'!D10*'Rozpis úklidu'!G10 -> 1 | C11: =IF('Rozpis úklidu'!N10=0,'Rozpis úklidu'!M10*B11/60,'Rozpis úklidu'!N10*B11/60) -> 0.2 | D11: ='Rozpis úklidu'!L10 -> Úklidová činnost č. 3 | E11: ='Rozpis úklidu'!P10*F11 -> 0 | F11: 1 | G11: =IF(F11<B11,(B11-F11)*('Rozpis úklidu'!P10)*2,0) -> 0
A12: ='Rozpis úklidu'!A11 -> posilovna | B12: ='Rozpis úklidu'!D11*'Rozpis úklidu'!G11 -> 1 | C12: =IF('Rozpis úklidu'!N11=0,'Rozpis úklidu'!M11*B12/60,'Rozpis úklidu'!N11*B12/60) -> 0.3333333333 | D12: ='Rozpis úklidu'!L11 -> Úklidová činnost č. 3 | E12: ='Rozpis úklidu'!P11*F12 -> 0 | F12: 1 | G12: =IF(F12<B12,(B12-F12)*('Rozpis úklidu'!P11)*2,0) -> 0
A13: ='Rozpis úklidu'!A12 -> studovna | B13: ='Rozpis úklidu'!D12*'Rozpis úklidu'!G12 -> 1 | C13: =IF('Rozpis úklidu'!N12=0,'Rozpis úklidu'!M12*B13/60,'Rozpis úklidu'!N12*B13/60) -> 0.1666666667 | D13: ='Rozpis úklidu'!L12 -> Úklidová činnost č. 3 | E13: ='Rozpis úklidu'!P12*F13 -> 0 | F13: 1 | G13: =IF(F13<B13,(B13-F13)*('Rozpis úklidu'!P12)*2,0) -> 0
A14: ='Rozpis úklidu'!A13 -> sušárna + prádelna | B14: ='Rozpis úklidu'!D13*'Rozpis úklidu'!G13 -> 1 | C14: =IF('Rozpis úklidu'!N13=0,'Rozpis úklidu'!M13*B14/60,'Rozpis úklidu'!N13*B14/60) -> 0.25 | D14: ='Rozpis úklidu'!L13 -> Úklidová činnost č. 4 | E14: ='Rozpis úklidu'!P13*F14 -> 0 | F14: 1 | G14: =IF(F14<B14,(B14-F14)*('Rozpis úklidu'!P13)*2,0) -> 0
A15: ='Rozpis úklidu'!A14 -> WC suterén | B15: ='Rozpis úklidu'!D14*'Rozpis úklidu'!G14 -> 2 | C15: =IF('Rozpis úklidu'!N14=0,'Rozpis úklidu'!M14*B15/60,'Rozpis úklidu'!N14*B15/60) -> 0.2666666667 | D15: ='Rozpis úklidu'!L14 -> Úklidová činnost č. 14 | E15: ='Rozpis úklidu'!P14*F15 -> 0 | F15: 2 | G15: =IF(F15<B15,(B15-F15)*('Rozpis úklidu'!P14)*2,0) -> 0
A16: ='Rozpis úklidu'!A15 -> HYGIENICKÉ ZÁZEMÍ 1. NP | B16: ='Rozpis úklidu'!D15*'Rozpis úklidu'!G15 -> 1 | C16: =IF('Rozpis úklidu'!N15=0,'Rozpis úklidu'!M15*B16/60,'Rozpis úklidu'!N15*B16/60) -> 0.1666666667 | D16: ='Rozpis úklidu'!L15 -> Úklidová činnost č. 14 a 15 | E16: ='Rozpis úklidu'!P15*F16 -> 0 | F16: 1 | G16: =IF(F16<B16,(B16-F16)*('Rozpis úklidu'!P15)*2,0) -> 0
A17: ='Rozpis úklidu'!A16 -> WC + sprcha 1.-7. NP | B17: ='Rozpis úklidu'!D16*'Rozpis úklidu'!G16 -> 14 | C17: =IF('Rozpis úklidu'!N16=0,'Rozpis úklidu'!M16*B17/60,'Rozpis úklidu'!N16*B17/60) -> 5.833333333 | D17: ='Rozpis úklidu'!L16 -> Úklidová činnost č. 14 | E17: ='Rozpis úklidu'!P16*F17 -> 0 | F17: 14 | G17: =IF(F17<B17,(B17-F17)*('Rozpis úklidu'!P16)*2,0) -> 0
A18: ='Rozpis úklidu'!A17 -> kuchyňky 1.-7. NP | B18: ='Rozpis úklidu'!D17*'Rozpis úklidu'!G17 -> 13 | C18: =IF('Rozpis úklidu'!N17=0,'Rozpis úklidu'!M17*B18/60,'Rozpis úklidu'!N17*B18/60) -> 4.333333333 | D18: ='Rozpis úklidu'!L17 -> Úklidová činnost č. 5 | E18: ='Rozpis úklidu'!P17*F18 -> 0 | F18: 13 | G18: =IF(F18<B18,(B18-F18)*('Rozpis úklidu'!P17)*2,0) -> 0
A19: Úklidová pohotovost + Operativní úklidové práce dle požadavku vedoucí koleje | B19: ='Základní údaje'!B11 -> 0 | C19: =F19/60 -> 0 | E19: =B19/60*F19 -> 0 | G19: 0
A20: Přepočtený počet uklízeček na den: | B20: =(C20+C52+C61)/7 -> 2.388571429 | C20: =SUM(C5:C19) -> 15.21666667 | D20: K FAKTURACI CELKEM: | E20: =SUM(E5:E19) -> 0 | G20: =SUM(G5:G19) -> 0
A21: Podpis vedoucí směny: | D21: Podpis zástupce vedení koleje:
A23: Karta úklidu | D23: ='Rozpis úklidu'!$A$1 -> kolej: Rooseveltova, VŠE
A24: TÝDENNÍ ÚKLID TÝDEN: | B24: =WEEKNUM(TODAY(),1) -> 14 | D24: =(NOW()) -> 2022-03-30T08:13:07.050
A25: ='Rozpis úklidu'!$A$3 -> Úklidová jednotka | B25: počet úklidů týdně | C25: Doba úklidu [hod.] | D25: ='Rozpis úklidu'!$L$3 -> Popis činnosti | E25: ='Rozpis úklidu'!$Q$3 -> cena celkem za všechny úklidové jednotky (prac. dny) [Kč] | F25: Správně uklizené jednotky | G25: Smluvní pokuta [Kč] | H25: Poznámka
A26: ='Rozpis úklidu'!A18 -> obyvák | B26: ='Rozpis úklidu'!D18*'Rozpis úklidu'!G18 -> 1 | C26: =IF('Rozpis úklidu'!N18=0,'Rozpis úklidu'!M18*B26/60,'Rozpis úklidu'!N18*B26/60) -> 0.6666666667 | D26: ='Rozpis úklidu'!L18 -> Úklidová činnost č. 3 | E26: ='Rozpis úklidu'!P18*F26 -> 0 | F26: =B26 -> 1 | G26: =IF(F26<B26,(B26-F26)*('Rozpis úklidu'!P18)*2,0) -> 0
A27: ='Rozpis úklidu'!A19 -> herní místnost | B27: ='Rozpis úklidu'!D19*'Rozpis úklidu'!G19 -> 1 | C27: =IF('Rozpis úklidu'!N19=0,'Rozpis úklidu'!M19*B27/60,'Rozpis úklidu'!N19*B27/60) -> 0.5 | D27: ='Rozpis úklidu'!L19 -> Úklidová činnost č. 3 | E27: ='Rozpis úklidu'!P19*F27 -> 0 | F27: =B27 -> 1 | G27: =IF(F27<B27,(B27-F27)*('Rozpis úklidu'!P19)*2,0) -> 0
A28: ='Rozpis úklidu'!A20 -> výtah velký - týdení úklid | B28: ='Rozpis úklidu'!D20*'Rozpis úklidu'!G20 -> 1 | C28: =IF('Rozpis úklidu'!N20=0,'Rozpis úklidu'!M20*B28/60,'Rozpis úklidu'!N20*B28/60) -> 0.25 | D28: ='Rozpis úklidu'!L20 -> Úklidová činnost č. 11 | E28: ='Rozpis úklidu'!P20*F28 -> 0 | F28: 1 | G28: =IF(F28<B28,(B28-F28)*('Rozpis úklidu'!P20)*2,0) -> 0
A29: ='Rozpis úklidu'!A21 -> výtah malý - týdenní úklid | B29: ='Rozpis úklidu'!D21*'Rozpis úklidu'!G21 -> 1 | C29: =IF('Rozpis úklidu'!N21=0,'Rozpis úklidu'!M21*B29/60,'Rozpis úklidu'!N21*B29/60) -> 0.2 | D29: ='Rozpis úklidu'!L21 -> Úklidová činnost č. 11 | E29: ='Rozpis úklidu'!P21*F29 -> 0 | F29: 1 | G29: =IF(F29<B29,(B29-F29)*('Rozpis úklidu'!P21)*2,0) -> 0
A30: ='Rozpis úklidu'!A22 -> přilehlé zábradlí | B30: ='Rozpis úklidu'!D22*'Rozpis úklidu'!G22 -> 21 | C30: =IF('Rozpis úklidu'!N22=0,'Rozpis úklidu'!M22*B30/60,'Rozpis úklidu'!N22*B30/60) -> 2.8 | D30: ='Rozpis úklidu'!L22 -> otřít zabradlí a parapet a utřít prach, odstranit pavučiny | E30: ='Rozpis úklidu'!P22*F30 -> 0 | F30: 21 | G30: =IF(F30<B30,(B30-F30)*('Rozpis úklidu'!P22)*2,0) -> 0
A31: ='Rozpis úklidu'!A23 -> tělocvična | B31: ='Rozpis úklidu'!D23*'Rozpis úklidu'!G23 -> 1 | C31: =IF('Rozpis úklidu'!N23=0,'Rozpis úklidu'!M23*B31/60,'Rozpis úklidu'!N23*B31/60) -> 0.5 | D31: ='Rozpis úklidu'!L23 -> Úklidová činnost č. 3 | E31: ='Rozpis úklidu'!P23*F31 -> 0 | F31: 1 | G31: =IF(F31<B31,(B31-F31)*('Rozpis úklidu'!P23)*2,0) -> 0
A32: ='Rozpis úklidu'!A24 -> místnost úklízeček a úklid.prost. | B32: ='Rozpis úklidu'!D24*'Rozpis úklidu'!G24 -> 1 | C32: =IF('Rozpis úklidu'!N24=0,'Rozpis úklidu'!M24*B32/60,'Rozpis úklidu'!N24*B32/60) -> 0.25 | D32: ='Rozpis úklidu'!L24 -> Úklidová činnost č. 3 | E32: ='Rozpis úklidu'!P24*F32 -> 0 | F32: 1 | G32: =IF(F32<B32,(B32-F32)*('Rozpis úklidu'!P24)*2,0) -> 0
A33: ='Rozpis úklidu'!A25 -> uklízečky soc. zařízení | B33: ='Rozpis úklidu'!D25*'Rozpis úklidu'!G25 -> 3 | C33: =IF('Rozpis úklidu'!N25=0,'Rozpis úklidu'!M25*B33/60,'Rozpis úklidu'!N25*B33/60) -> 0.15 | D33: ='Rozpis úklidu'!L25 -> Úklidová činnost č. 14 a 15 | E33: ='Rozpis úklidu'!P25*F33 -> 0 | F33: 3 | G33: =IF(F33<B33,(B33-F33)*('Rozpis úklidu'!P25)*2,0) -> 0
A34: ='Rozpis úklidu'!A26 -> balkon | B34: ='Rozpis úklidu'!D26*'Rozpis úklidu'!G26 -> 18 | C34: =IF('Rozpis úklidu'!N26=0,'Rozpis úklidu'!M26*B34/60,'Rozpis úklidu'!N26*B34/60) -> 2.1 | D34: ='Rozpis úklidu'!L26 -> Úklidová činnost č. 2 | E34: ='Rozpis úklidu'!P26*F34 -> 0 | F34: 18 | G34: =IF(F34<B34,(B34-F34)*('Rozpis úklidu'!P26)*2,0) -> 0
A35: =CONCATENATE('Rozpis úklidu'!A56," / (",'Rozpis úklidu'!F56,")") -> terasa / (sezonně) | B35: 0 | C35: =IF('Rozpis úklidu'!N56=0,'Rozpis úklidu'!M56*B35/60,'Rozpis úklidu'!N56*B35/60) -> 0 | D35: ='Rozpis úklidu'!L56 -> zamést podlahu, vynést odpadky, umýt dveře včetně zárubní, otřít a urovnat nábytek | E35: ='Rozpis úklidu'!P56*F35 -> 0 | F35: =B35 -> 0 | G35: =IF(F35<B35,(B35-F35)*('Rozpis úklidu'!P56)*2,0) -> 0
A36: =CONCATENATE('Rozpis úklidu'!A45," / (",'Rozpis úklidu'!F45,")"," (",'Rozpis úklidu'!D45,")") -> Okna (různé velikosti) / (ročně) (323) | B36: 0 | C36: =IF('Rozpis úklidu'!N45=0,'Rozpis úklidu'!M45*B36/60,'Rozpis úklidu'!N45*B36/60) -> 0 | D36: ='Rozpis úklidu'!L45 -> Úklidová činnost č. 12 | E36: ='Rozpis úklidu'!P45*F36 -> 0 | F36: =B36 -> 0 | G36: =IF(F36<B36,(B36-F36)*('Rozpis úklidu'!P45)*2,0) -> 0
A37: =CONCATENATE('Rozpis úklidu'!A27," (",'Rozpis úklidu'!D27*'Rozpis úklidu'!G27,")") -> dvoulůžkový pokoj- buňka - HOTEL (4) | B37: 0 | C37: =IF('Rozpis úklidu'!N27=0,'Rozpis úklidu'!M27*B37/60,'Rozpis úklidu'!N27*B37/60) -> 0 | D37: =CONCATENATE('Rozpis úklidu'!L27," (po odjezdu)") -> Úklidová činnost č. 8 (po odjezdu) | E37: ='Rozpis úklidu'!P27*F37 -> 0 | F37: 0 | G37: =IF(F37<B37,(B37-F37)*('Rozpis úklidu'!P27)*2,0) -> 0
A38: =CONCATENATE('Rozpis úklidu'!A28," (",'Rozpis úklidu'!D28*'Rozpis úklidu'!G28,")") -> jedolůžkový pokoj- buňka - HOTEL (1) | B38: 0 | C38: =IF('Rozpis úklidu'!N28=0,'Rozpis úklidu'!M28*B38/60,'Rozpis úklidu'!N28*B38/60) -> 0 | D38: =CONCATENATE('Rozpis úklidu'!L28," (po odjezdu)") -> Úklidová činnost č. 8 (po odjezdu) | E38: ='Rozpis úklidu'!P28*F38 -> 0 | F38: 0 | G38: =IF(F38<B38,(B38-F38)*('Rozpis úklidu'!P28)*2,0) -> 0
A39: =CONCATENATE('Rozpis úklidu'!A29," (",'Rozpis úklidu'!D29*'Rozpis úklidu'!G29,")") -> třílůžkový pokoj- buňka - HOTEL (1) | B39: 0 | C39: =IF('Rozpis úklidu'!N29=0,'Rozpis úklidu'!M29*B39/60,'Rozpis úklidu'!N29*B39/60) -> 0 | D39: =CONCATENATE('Rozpis úklidu'!L29," (po odjezdu)") -> Úklidová činnost č. 8 (po odjezdu) | E39: ='Rozpis úklidu'!P29*F39 -> 0 | F39: =B39 -> 0 | G39: =IF(F39<B39,(B39-F39)*('Rozpis úklidu'!P29)*2,0) -> 0
A40: =CONCATENATE('Rozpis úklidu'!A30," (",'Rozpis úklidu'!D30*'Rozpis úklidu'!G30,")") -> dvoulůžkový pokoj- buňka - HOTEL (4) | B40: 0 | C40: =IF('Rozpis úklidu'!N30=0,'Rozpis úklidu'!M30*B40/60,'Rozpis úklidu'!N30*B40/60) -> 0 | D40: =CONCATENATE('Rozpis úklidu'!L30," (v průběhu pobytu)") -> Úklidová činnost č. 9 (v průběhu pobytu) | E40: ='Rozpis úklidu'!P30*F40 -> 0 | F40: 0 | G40: =IF(F40<B40,(B40-F40)*('Rozpis úklidu'!P30)*2,0) -> 0
A41: =CONCATENATE('Rozpis úklidu'!A31," (",'Rozpis úklidu'!D31*'Rozpis úklidu'!G31,")") -> jedolůžkový pokoj- buňka - HOTEL (1) | B41: 0 | C41: =IF('Rozpis úklidu'!N31=0,'Rozpis úklidu'!M31*B41/60,'Rozpis úklidu'!N31*B41/60) -> 0 | D41: =CONCATENATE('Rozpis úklidu'!L31," (v průběhu pobytu)") -> Úklidová činnost č. 9 (v průběhu pobytu) | E41: ='Rozpis úklidu'!P31*F41 -> 0 | F41: 0 | G41: =IF(F41<B41,(B41-F41)*('Rozpis úklidu'!P31)*2,0) -> 0
A42: =CONCATENATE('Rozpis úklidu'!A32," (",'Rozpis úklidu'!D32*'Rozpis úklidu'!G32,")") -> třílůžkový pokoj- buňka - HOTEL (1) | B42: 0 | C42: =IF('Rozpis úklidu'!N32=0,'Rozpis úklidu'!M32*B42/60,'Rozpis úklidu'!N32*B42/60) -> 0 | D42: =CONCATENATE('Rozpis úklidu'!L32," (v průběhu pobytu)") -> Úklidová činnost č. 9 (v průběhu pobytu) | E42: ='Rozpis úklidu'!P32*F42 -> 0 | F42: =B42 -> 0 | G42: =IF(F42<B42,(B42-F42)*('Rozpis úklidu'!P32)*2,0) -> 0
A43: =CONCATENATE('Rozpis úklidu'!A33," (",'Rozpis úklidu'!D33*'Rozpis úklidu'!G33,")") -> chodba+kuchyňka- buňka - HOTEL (1) | B43: 0 | C43: =IF('Rozpis úklidu'!N33=0,'Rozpis úklidu'!M33*B43/60,'Rozpis úklidu'!N33*B43/60) -> 0 | D43: ='Rozpis úklidu'!L33 -> Úklidová činnost č. 5 | E43: ='Rozpis úklidu'!P33*F43 -> 0 | F43: 0 | G43: =IF(F43<B43,(B43-F43)*('Rozpis úklidu'!P33)*2,0) -> 0
A44: =CONCATENATE('Rozpis úklidu'!A34," (",'Rozpis úklidu'!D34*'Rozpis úklidu'!G34,")") -> sprcha - buňka - HOTEL (4) | B44: 0 | C44: =IF('Rozpis úklidu'!N34=0,'Rozpis úklidu'!M34*B44/60,'Rozpis úklidu'!N34*B44/60) -> 0 | D44: ='Rozpis úklidu'!L34 -> Úklidová činnost č. 15 | E44: ='Rozpis úklidu'!P34*F44 -> 0 | F44: 0 | G44: =IF(F44<B44,(B44-F44)*('Rozpis úklidu'!P34)*2,0) -> 0
A45: =CONCATENATE('Rozpis úklidu'!A35," (",'Rozpis úklidu'!D35*'Rozpis úklidu'!G35,")") -> WC - buňka - HOTEL (4) | B45: 0 | C45: =IF('Rozpis úklidu'!N35=0,'Rozpis úklidu'!M35*B45/60,'Rozpis úklidu'!N35*B45/60) -> 0 | D45: ='Rozpis úklidu'!L35 -> Úklidová činnost č. 14 | E45: ='Rozpis úklidu'!P35*F45 -> 0 | F45: 0 | G45: =IF(F45<B45,(B45-F45)*('Rozpis úklidu'!P35)*2,0) -> 0
A46: =CONCATENATE('Rozpis úklidu'!A36," (",'Rozpis úklidu'!D36*'Rozpis úklidu'!G36,")") -> jednolůžkový samostatný - HOTEL (1) | B46: 0 | C46: =IF('Rozpis úklidu'!N36=0,'Rozpis úklidu'!M36*B46/60,'Rozpis úklidu'!N36*B46/60) -> 0 | D46: =CONCATENATE('Rozpis úklidu'!L36," (po odjezdu)") -> Úklidová činnost č. 8 (po odjezdu) | E46: ='Rozpis úklidu'!P36*F46 -> 0 | F46: 0 | G46: =IF(F46<B46,(B46-F46)*('Rozpis úklidu'!P36)*2,0) -> 0
A47: =CONCATENATE('Rozpis úklidu'!A37," (",'Rozpis úklidu'!D37*'Rozpis úklidu'!G37,")") -> dvoulůžkový samostatný - HOTEL (2) | B47: 0 | C47: =IF('Rozpis úklidu'!N37=0,'Rozpis úklidu'!M37*B47/60,'Rozpis úklidu'!N37*B47/60) -> 0 | D47: =CONCATENATE('Rozpis úklidu'!L37," (po odjezdu)") -> Úklidová činnost č. 8 (po odjezdu) | E47: ='Rozpis úklidu'!P37*F47 -> 0 | F47: 0 | G47: =IF(F47<B47,(B47-F47)*('Rozpis úklidu'!P37)*2,0) -> 0
A48: =CONCATENATE('Rozpis úklidu'!A38," (",'Rozpis úklidu'!D38*'Rozpis úklidu'!G38,")") -> trojlůžkový samostatný - HOTEL (1) | B48: 0 | C48: =IF('Rozpis úklidu'!N38=0,'Rozpis úklidu'!M38*B48/60,'Rozpis úklidu'!N38*B48/60) -> 0 | D48: =CONCATENATE('Rozpis úklidu'!L38," (po odjezdu)") -> Úklidová činnost č. 8 (po odjezdu) | E48: ='Rozpis úklidu'!P38*F48 -> 0 | F48: 0 | G48: =IF(F48<B48,(B48-F48)*('Rozpis úklidu'!P38)*2,0) -> 0
A49: =CONCATENATE('Rozpis úklidu'!A39," (",'Rozpis úklidu'!D39*'Rozpis úklidu'!G39,")") -> jednolůžkový samostatný - HOTEL (1) | B49: 0 | C49: =IF('Rozpis úklidu'!N39=0,'Rozpis úklidu'!M39*B49/60,'Rozpis úklidu'!N39*B49/60) -> 0 | D49: =CONCATENATE('Rozpis úklidu'!L39," (v průběhu pobytu)") -> Úklidová činnost č. 9 (v průběhu pobytu) | E49: ='Rozpis úklidu'!P39*F49 -> 0 | F49: 0 | G49: =IF(F49<B49,(B49-F49)*('Rozpis úklidu'!P39)*2,0) -> 0
A50: =CONCATENATE('Rozpis úklidu'!A40," (",'Rozpis úklidu'!D40*'Rozpis úklidu'!G40,")") -> dvoulůžkový samostatný - HOTEL (2) | B50: 0 | C50: =IF('Rozpis úklidu'!N40=0,'Rozpis úklidu'!M40*B50/60,'Rozpis úklidu'!N40*B50/60) -> 0 | D50: =CONCATENATE('Rozpis úklidu'!L40," (v průběhu pobytu)") -> Úklidová činnost č. 9 (v průběhu pobytu) | E50: ='Rozpis úklidu'!P40*F50 -> 0 | F50: 0 | G50: =IF(F50<B50,(B50-F50)*('Rozpis úklidu'!P40)*2,0) -> 0
A51: =CONCATENATE('Rozpis úklidu'!A41," (",'Rozpis úklidu'!D41*'Rozpis úklidu'!G41,")") -> trojlůžkový samostatný - HOTEL (1) | B51: 0 | C51: =IF('Rozpis úklidu'!N41=0,'Rozpis úklidu'!M41*B51/60,'Rozpis úklidu'!N41*B51/60) -> 0 | D51: =CONCATENATE('Rozpis úklidu'!L41," (v průběhu pobytu)") -> Úklidová činnost č. 9 (v průběhu pobytu) | E51: ='Rozpis úklidu'!P41*F51 -> 0 | F51: 0 | G51: =IF(F51<B51,(B51-F51)*('Rozpis úklidu'!P41)*2,0) -> 0
B52: Denní ekvivalent: | C52: =SUM(C26:C51)/5 -> 1.483333333 | D52: K FAKTURACI CELKEM: | E52: =SUM(E26:E51) -> 0 | G52: =SUM(G26:G51) -> 0
A53: Podpis vedoucí směny: | D53: Podpis zástupce vedení koleje:
A55: Karta úklidu | D55: ='Rozpis úklidu'!$A$1 -> kolej: Rooseveltova, VŠE
A56: MĚSÍČNÍ ÚKLID MĚSÍC: | B56: =MONTH(D56) -> 3 | D56: =NOW() -> 2022-03-30T08:13:07.050
A57: ='Rozpis úklidu'!$A$3 -> Úklidová jednotka | B57: ='Rozpis úklidu'!$D$3 -> počet úklidových jednotek | C57: Doba úklidu [hod.] | D57: ='Rozpis úklidu'!$L$3 -> Popis činnosti | E57: ='Rozpis úklidu'!$Q$3 -> cena celkem za všechny úklidové jednotky (prac. dny) [Kč] | F57: Správně uklizené jednotky | G57: Smluvní pokuta [Kč] | H57: Poznámka
A58: =CONCATENATE('Rozpis úklidu'!A42," (",'Rozpis úklidu'!D42*'Rozpis úklidu'!G42,")") -> kanceláře+zázemí (1) | B58: ='Rozpis úklidu'!D42*'Rozpis úklidu'!G42 -> 1 | C58: =IF('Rozpis úklidu'!N42=0,'Rozpis úklidu'!M42*B58/60,'Rozpis úklidu'!N42*B58/60) -> 0.1666666667 | D58: ='Rozpis úklidu'!L42 -> Úklidová činnost č. 3 | E58: ='Rozpis úklidu'!P42*F58 -> 0 | F58: =B58 -> 1 | G58: =IF(F58<B58,(B58-F58)*('Rozpis úklidu'!P42)*2,0) -> 0
A59: =CONCATENATE('Rozpis úklidu'!A43," (",'Rozpis úklidu'!D43*'Rozpis úklidu'!G43,")") -> sklad lůžkovin (1) | B59: ='Rozpis úklidu'!D43*'Rozpis úklidu'!G43 -> 1 | C59: =IF('Rozpis úklidu'!N43=0,'Rozpis úklidu'!M43*B59/60,'Rozpis úklidu'!N43*B59/60) -> 0.1 | D59: ='Rozpis úklidu'!L43 -> Úklidová činnost č. 3 | E59: ='Rozpis úklidu'!P43*F59 -> 0 | F59: =B59 -> 1 | G59: =IF(F59<B59,(B59-F59)*('Rozpis úklidu'!P43)*2,0) -> 0
A60: =CONCATENATE('Rozpis úklidu'!A44," (",'Rozpis úklidu'!D44*'Rozpis úklidu'!G44,")") -> sklad- čistící prostředky (1) | B60: ='Rozpis úklidu'!D44*'Rozpis úklidu'!G44 -> 1 | C60: =IF('Rozpis úklidu'!N44=0,'Rozpis úklidu'!M44*B60/60,'Rozpis úklidu'!N44*B60/60) -> 0.1333333333 | D60: ='Rozpis úklidu'!L44 -> Úklidová činnost č. 3 | E60: ='Rozpis úklidu'!P44*F60 -> 0 | F60: 1 | G60: =IF(F60<B60,(B60-F60)*('Rozpis úklidu'!P44)*2,0) -> 0
B61: Denní ekvivalent: | C61: =SUM(C58:C60)/20 -> 0.02 | D61: K FAKTURACI CELKEM: | E61: =SUM(E58:E60) -> 0 | G61: =SUM(G58:G59) -> 0
A62: Podpis vedoucí směny: | D62: Podpis zástupce vedení koleje:
A64: Karta úklidu | D64: ='Rozpis úklidu'!$A$1 -> kolej: Rooseveltova, VŠE
A65: SEZONNÍ ÚKLID MĚSÍC: | B65: =MONTH(D65) -> 3 | D65: =(NOW()) -> 2022-03-30T08:13:07.050
A66: ='Rozpis úklidu'!$A$3 -> Úklidová jednotka | B66: ='Rozpis úklidu'!$D$3 -> počet úklidových jednotek | D66: ='Rozpis úklidu'!$L$3 -> Popis činnosti | E66: ='Rozpis úklidu'!$Q$3 -> cena celkem za všechny úklidové jednotky (prac. dny) [Kč] | F66: Správně uklizené jednotky | G66: Smluvní pokuta [Kč] | H66: Poznámka
A67: =CONCATENATE('Rozpis úklidu'!A46," (",'Rozpis úklidu'!F46,")") -> jednolůžkový pokoj (buňka) (sezonně) | B67: 0 | C67: =IF('Rozpis úklidu'!N46=0,'Rozpis úklidu'!M46*B67/60,'Rozpis úklidu'!N46*B67/60) -> 0 | D67: ='Rozpis úklidu'!L46 -> Úklidová činnost č. 6 | E67: ='Rozpis úklidu'!P46*F67 -> 0 | F67: =B67 -> 0 | G67: =IF(F67<B67,(B67-F67)*('Rozpis úklidu'!P46)*2,0) -> 0
A68: =CONCATENATE('Rozpis úklidu'!A47," (",'Rozpis úklidu'!F47,")") -> dvoulůžkový pokoj (buňka) (sezonně) | B68: 0 | C68: =IF('Rozpis úklidu'!N47=0,'Rozpis úklidu'!M47*B68/60,'Rozpis úklidu'!N47*B68/60) -> 0 | D68: ='Rozpis úklidu'!L47 -> Úklidová činnost č. 6 | E68: ='Rozpis úklidu'!P47*F68 -> 0 | F68: =B68 -> 0 | G68: =IF(F68<B68,(B68-F68)*('Rozpis úklidu'!P47)*2,0) -> 0
A69: =CONCATENATE('Rozpis úklidu'!A48," (",'Rozpis úklidu'!F48,")") -> třílůžkový pokoj (buňka) (sezonně) | B69: 0 | C69: =IF('Rozpis úklidu'!N48=0,'Rozpis úklidu'!M48*B69/60,'Rozpis úklidu'!N48*B69/60) -> 0 | D69: ='Rozpis úklidu'!L48 -> Úklidová činnost č. 6 | E69: ='Rozpis úklidu'!P48*F69 -> 0 | F69: 0 | G69: =IF(F69<B69,(B69-F69)*('Rozpis úklidu'!P48)*2,0) -> 0
A70: =CONCATENATE('Rozpis úklidu'!A49," (",'Rozpis úklidu'!F49,")") -> chodba + kuchyňka - buňka (sezonně) | B70: 0 | C70: =IF('Rozpis úklidu'!N49=0,'Rozpis úklidu'!M49*B70/60,'Rozpis úklidu'!N49*B70/60) -> 0 | D70: ='Rozpis úklidu'!L49 -> Úklidová činnost č. 5 | E70: ='Rozpis úklidu'!P49*F70 -> 0 | F70: 0 | G70: =IF(F70<B70,(B70-F70)*('Rozpis úklidu'!P49)*2,0) -> 0
A71: =CONCATENATE('Rozpis úklidu'!A50," (",'Rozpis úklidu'!F50,")") -> sprcha - buňka (sezonně) | B71: 0 | C71: =IF('Rozpis úklidu'!N50=0,'Rozpis úklidu'!M50*B71/60,'Rozpis úklidu'!N50*B71/60) -> 0 | D71: ='Rozpis úklidu'!L50 -> Úklidová činnost č. 15 | E71: ='Rozpis úklidu'!P50*F71 -> 0 | F71: 0 | G71: =IF(F71<B71,(B71-F71)*('Rozpis úklidu'!P50)*2,0) -> 0
A72: =CONCATENATE('Rozpis úklidu'!A51," (",'Rozpis úklidu'!F51,")") -> WC - buňka (sezonně) | B72: 0 | C72: =IF('Rozpis úklidu'!N51=0,'Rozpis úklidu'!M51*B72/60,'Rozpis úklidu'!N51*B72/60) -> 0 | D72: ='Rozpis úklidu'!L51 -> Úklidová činnost č. 14 | E72: ='Rozpis úklidu'!P51*F72 -> 0 | F72: 0 | G72: =IF(F72<B72,(B72-F72)*('Rozpis úklidu'!P51)*2,0) -> 0
A73: =CONCATENATE('Rozpis úklidu'!A52," (",'Rozpis úklidu'!F52,")") -> jednolůžkový samostatný (sezonně) | B73: 0 | C73: =IF('Rozpis úklidu'!N52=0,'Rozpis úklidu'!M52*B73/60,'Rozpis úklidu'!N52*B73/60) -> 0 | D73: ='Rozpis úklidu'!L52 -> Úklidová činnopst č. 6 | E73: ='Rozpis úklidu'!P52*F73 -> 0 | F73: 0 | G73: =IF(F73<B73,(B73-F73)*('Rozpis úklidu'!P52)*2,0) -> 0
A74: =CONCATENATE('Rozpis úklidu'!A53," (",'Rozpis úklidu'!F53,")") -> dvoulůžkový samostatný (sezonně) | B74: 0 | C74: =IF('Rozpis úklidu'!N53=0,'Rozpis úklidu'!M53*B74/60,'Rozpis úklidu'!N53*B74/60) -> 0 | D74: ='Rozpis úklidu'!L53 -> Úklidová činnopst č. 6 | E74: ='Rozpis úklidu'!P53*F74 -> 0 | F74: 0 | G74: =IF(F74<B74,(B74-F74)*('Rozpis úklidu'!P53)*2,0) -> 0
A75: =CONCATENATE('Rozpis úklidu'!A54," (",'Rozpis úklidu'!F54,")") -> trojlůžkový samostatný (sezonně) | B75: 0 | C75: =IF('Rozpis úklidu'!N54=0,'Rozpis úklidu'!M54*B75/60,'Rozpis úklidu'!N54*B75/60) -> 0 | D75: ='Rozpis úklidu'!L54 -> Úklidová činnopst č. 6 | E75: ='Rozpis úklidu'!P54*F75 -> 0 | F75: 0 | G75: =IF(F75<B75,(B75-F75)*('Rozpis úklidu'!P54)*2,0) -> 0
A76: =CONCATENATE('Rozpis úklidu'!A55," (",'Rozpis úklidu'!F55,")") -> přebrání pokoje po ubytovaných (sezonně) | B76: 0 | C76: =IF('Rozpis úklidu'!N55=0,'Rozpis úklidu'!M55*B76/60,'Rozpis úklidu'!N55*B76/60) -> 0 | D76: ='Rozpis úklidu'!L55 -> Úklidová činnost č. 10 | E76: ='Rozpis úklidu'!P55*F76 -> 0 | F76: 0 | G76: =IF(F76<B76,(B76-F76)*('Rozpis úklidu'!P55)*2,0) -> 0
C77: =SUM(C67:C76) -> 0 | D77: K FAKTURACI CELKEM: | E77: =SUM(E67:E76) -> 0 | G77: =SUM(G67:G76) -> 0
A78: Podpis vedoucí směny: | D78: Podpis zástupce vedení koleje:
A80: Karta úklidu | D80: ='Rozpis úklidu'!$A$1 -> kolej: Rooseveltova, VŠE
A81: ÚKLID O VÍKENDU DNE: | B81: =(NOW()) -> 2022-03-30T08:13:07.050
A82: ='Rozpis úklidu'!$A$3 -> Úklidová jednotka | B82: ='Rozpis úklidu'!$D$3 -> počet úklidových jednotek | D82: ='Rozpis úklidu'!$L$3 -> Popis činnosti | E82: cena celkem za všechny úklidové jednotky (VÍKEND) [Kč] | F82: Správně uklizené jednotky | G82: Smluvní pokuta [Kč] | H82: Poznámka
A83: =CONCATENATE('Rozpis úklidu'!A27," (",'Rozpis úklidu'!D27*'Rozpis úklidu'!G27,")") -> dvoulůžkový pokoj- buňka - HOTEL (4) | B83: 0 | C83: =IF('Rozpis úklidu'!N27=0,'Rozpis úklidu'!M27*B83/60,'Rozpis úklidu'!N27*B83/60) -> 0 | D83: =CONCATENATE('Rozpis úklidu'!L27," (po odjezdu)") -> Úklidová činnost č. 8 (po odjezdu) | E83: ='Rozpis úklidu'!P27*F83*'Základní údaje'!$C$11 -> 0 | F83: =B83 -> 0 | G83: =IF(F83<B83,(B83-F83)*('Rozpis úklidu'!P27)*2,0) -> 0
A84: =CONCATENATE('Rozpis úklidu'!A28," (",'Rozpis úklidu'!D28*'Rozpis úklidu'!G28,")") -> jedolůžkový pokoj- buňka - HOTEL (1) | B84: 0 | C84: =IF('Rozpis úklidu'!N28=0,'Rozpis úklidu'!M28*B84/60,'Rozpis úklidu'!N28*B84/60) -> 0 | D84: =CONCATENATE('Rozpis úklidu'!L28," (po odjezdu)") -> Úklidová činnost č. 8 (po odjezdu) | E84: ='Rozpis úklidu'!P28*F84*'Základní údaje'!$C$11 -> 0 | F84: =B84 -> 0 | G84: =IF(F84<B84,(B84-F84)*('Rozpis úklidu'!P28)*2,0) -> 0
A85: =CONCATENATE('Rozpis úklidu'!A29," (",'Rozpis úklidu'!D29*'Rozpis úklidu'!G29,")") -> třílůžkový pokoj- buňka - HOTEL (1) | B85: 0 | C85: =IF('Rozpis úklidu'!N29=0,'Rozpis úklidu'!M29*B85/60,'Rozpis úklidu'!N29*B85/60) -> 0 | D85: =CONCATENATE('Rozpis úklidu'!L29," (po odjezdu)") -> Úklidová činnost č. 8 (po odjezdu) | E85: ='Rozpis úklidu'!P29*F85*'Základní údaje'!$C$11 -> 0 | F85: 0 | G85: =IF(F85<B85,(B85-F85)*('Rozpis úklidu'!P29)*2,0) -> 0
A86: =CONCATENATE('Rozpis úklidu'!A30," (",'Rozpis úklidu'!D30*'Rozpis úklidu'!G30,")") -> dvoulůžkový pokoj- buňka - HOTEL (4) | B86: 0 | C86: =IF('Rozpis úklidu'!N30=0,'Rozpis úklidu'!M30*B86/60,'Rozpis úklidu'!N30*B86/60) -> 0 | D86: =CONCATENATE('Rozpis úklidu'!L30," (v průběhu pobytu)") -> Úklidová činnost č. 9 (v průběhu pobytu) | E86: ='Rozpis úklidu'!P30*F86*'Základní údaje'!$C$11 -> 0 | F86: 0 | G86: =IF(F86<B86,(B86-F86)*('Rozpis úklidu'!P30)*2,0) -> 0
A87: =CONCATENATE('Rozpis úklidu'!A31," (",'Rozpis úklidu'!D31*'Rozpis úklidu'!G31,")") -> jedolůžkový pokoj- buňka - HOTEL (1) | B87: 0 | C87: =IF('Rozpis úklidu'!N31=0,'Rozpis úklidu'!M31*B87/60,'Rozpis úklidu'!N31*B87/60) -> 0 | D87: =CONCATENATE('Rozpis úklidu'!L31," (v průběhu pobytu)") -> Úklidová činnost č. 9 (v průběhu pobytu) | E87: ='Rozpis úklidu'!P31*F87*'Základní údaje'!$C$11 -> 0 | F87: 0 | G87: =IF(F87<B87,(B87-F87)*('Rozpis úklidu'!P31)*2,0) -> 0
A88: =CONCATENATE('Rozpis úklidu'!A32," (",'Rozpis úklidu'!D32*'Rozpis úklidu'!G32,")") -> třílůžkový pokoj- buňka - HOTEL (1) | B88: 0 | C88: =IF('Rozpis úklidu'!N32=0,'Rozpis úklidu'!M32*B88/60,'Rozpis úklidu'!N32*B88/60) -> 0 | D88: =CONCATENATE('Rozpis úklidu'!L32," (v průběhu pobytu)") -> Úklidová činnost č. 9 (v průběhu pobytu) | E88: ='Rozpis úklidu'!P32*F88*'Základní údaje'!$C$11 -> 0 | F88: 0 | G88: =IF(F88<B88,(B88-F88)*('Rozpis úklidu'!P32)*2,0) -> 0
A89: =CONCATENATE('Rozpis úklidu'!A33," (",'Rozpis úklidu'!D33*'Rozpis úklidu'!G33,")") -> chodba+kuchyňka- buňka - HOTEL (1) | B89: 0 | C89: =IF('Rozpis úklidu'!N33=0,'Rozpis úklidu'!M33*B89/60,'Rozpis úklidu'!N33*B89/60) -> 0 | D89: ='Rozpis úklidu'!L33 -> Úklidová činnost č. 5 | E89: ='Rozpis úklidu'!P33*F89*'Základní údaje'!$C$11 -> 0 | F89: 0 | G89: =IF(F89<B89,(B89-F89)*('Rozpis úklidu'!P33)*2,0) -> 0
A90: =CONCATENATE('Rozpis úklidu'!A34," (",'Rozpis úklidu'!D34*'Rozpis úklidu'!G34,")") -> sprcha - buňka - HOTEL (4) | B90: 0 | C90: =IF('Rozpis úklidu'!N34=0,'Rozpis úklidu'!M34*B90/60,'Rozpis úklidu'!N34*B90/60) -> 0 | D90: ='Rozpis úklidu'!L34 -> Úklidová činnost č. 15 | E90: ='Rozpis úklidu'!P34*F90*'Základní údaje'!$C$11 -> 0 | F90: 0 | G90: =IF(F90<B90,(B90-F90)*('Rozpis úklidu'!P34)*2,0) -> 0
A91: =CONCATENATE('Rozpis úklidu'!A35," (",'Rozpis úklidu'!D35*'Rozpis úklidu'!G35,")") -> WC - buňka - HOTEL (4) | B91: 0 | C91: =IF('Rozpis úklidu'!N35=0,'Rozpis úklidu'!M35*B91/60,'Rozpis úklidu'!N35*B91/60) -> 0 | D91: ='Rozpis úklidu'!L35 -> Úklidová činnost č. 14 | E91: ='Rozpis úklidu'!P35*F91*'Základní údaje'!$C$11 -> 0 | F91: 0 | G91: =IF(F91<B91,(B91-F91)*('Rozpis úklidu'!P35)*2,0) -> 0
A92: =CONCATENATE('Rozpis úklidu'!A36," (",'Rozpis úklidu'!D36*'Rozpis úklidu'!G36,")") -> jednolůžkový samostatný - HOTEL (1) | B92: 0 | C92: =IF('Rozpis úklidu'!N36=0,'Rozpis úklidu'!M36*B92/60,'Rozpis úklidu'!N36*B92/60) -> 0 | D92: =CONCATENATE('Rozpis úklidu'!L36," (po odjezdu)") -> Úklidová činnost č. 8 (po odjezdu) | E92: ='Rozpis úklidu'!P36*F92*'Základní údaje'!$C$11 -> 0 | F92: 0 | G92: =IF(F92<B92,(B92-F92)*('Rozpis úklidu'!P36)*2,0) -> 0
A93: =CONCATENATE('Rozpis úklidu'!A37," (",'Rozpis úklidu'!D37*'Rozpis úklidu'!G37,")") -> dvoulůžkový samostatný - HOTEL (2) | B93: 0 | C93: =IF('Rozpis úklidu'!N37=0,'Rozpis úklidu'!M37*B93/60,'Rozpis úklidu'!N37*B93/60) -> 0 | D93: =CONCATENATE('Rozpis úklidu'!L37," (po odjezdu)") -> Úklidová činnost č. 8 (po odjezdu) | E93: ='Rozpis úklidu'!P37*F93*'Základní údaje'!$C$11 -> 0 | F93: 0 | G93: =IF(F93<B93,(B93-F93)*('Rozpis úklidu'!P37)*2,0) -> 0
A94: =CONCATENATE('Rozpis úklidu'!A38," (",'Rozpis úklidu'!D38*'Rozpis úklidu'!G38,")") -> trojlůžkový samostatný - HOTEL (1) | B94: 0 | C94: =IF('Rozpis úklidu'!N38=0,'Rozpis úklidu'!M38*B94/60,'Rozpis úklidu'!N38*B94/60) -> 0 | D94: =CONCATENATE('Rozpis úklidu'!L38," (po odjezdu)") -> Úklidová činnost č. 8 (po odjezdu) | E94: ='Rozpis úklidu'!P38*F94*'Základní údaje'!$C$11 -> 0 | F94: 0 | G94: =IF(F94<B94,(B94-F94)*('Rozpis úklidu'!P38)*2,0) -> 0
A95: =CONCATENATE('Rozpis úklidu'!A39," (",'Rozpis úklidu'!D39*'Rozpis úklidu'!G39,")") -> jednolůžkový samostatný - HOTEL (1) | B95: 0 | C95: =IF('Rozpis úklidu'!N39=0,'Rozpis úklidu'!M39*B95/60,'Rozpis úklidu'!N39*B95/60) -> 0 | D95: =CONCATENATE('Rozpis úklidu'!L39," (v průběhu pobytu)") -> Úklidová činnost č. 9 (v průběhu pobytu) | E95: ='Rozpis úklidu'!P39*F95*'Základní údaje'!$C$11 -> 0 | F95: 0 | G95: =IF(F95<B95,(B95-F95)*('Rozpis úklidu'!P39)*2,0) -> 0
A96: =CONCATENATE('Rozpis úklidu'!A40," (",'Rozpis úklidu'!D40*'Rozpis úklidu'!G40,")") -> dvoulůžkový samostatný - HOTEL (2) | B96: 0 | C96: =IF('Rozpis úklidu'!N40=0,'Rozpis úklidu'!M40*B96/60,'Rozpis úklidu'!N40*B96/60) -> 0 | D96: =CONCATENATE('Rozpis úklidu'!L40," (v průběhu pobytu)") -> Úklidová činnost č. 9 (v průběhu pobytu) | E96: ='Rozpis úklidu'!P40*F96*'Základní údaje'!$C$11 -> 0 | F96: 0 | G96: =IF(F96<B96,(B96-F96)*('Rozpis úklidu'!P40)*2,0) -> 0
A97: =CONCATENATE('Rozpis úklidu'!A41," (",'Rozpis úklidu'!D41*'Rozpis úklidu'!G41,")") -> trojlůžkový samostatný - HOTEL (1) | B97: 0 | C97: =IF('Rozpis úklidu'!N41=0,'Rozpis úklidu'!M41*B97/60,'Rozpis úklidu'!N41*B97/60) -> 0 | D97: =CONCATENATE('Rozpis úklidu'!L41," (v průběhu pobytu)") -> Úklidová činnost č. 9 (v průběhu pobytu) | E97: ='Rozpis úklidu'!P41*F97*'Základní údaje'!$C$11 -> 0 | F97: 0 | G97: =IF(F97<B97,(B97-F97)*('Rozpis úklidu'!P41)*2,0) -> 0
C98: =SUM(C83:C97) -> 0 | D98: K FAKTURACI CELKEM: | E98: =SUM(E83:E97) -> 0 | G98: =SUM(G83:G97) -> 0
A99: Podpis vedoucí směny: | D99: Podpis zástupce vedení koleje:

Sheet Činnosti úklidu
B1: Úklidová činnost
B2: Úklidová činnost probíhá v čase od 07:00 hod. do 15.00 hod. v jednosměnném provozu v pětidenním pracovním týdnu, úklid hotelových pokojů musí být dle potřeby zajištěn i o víkendu. V době nastěhování a vystěhování studentů koncem letního semestru a začátkem zimního semestru stanovuje dobu pro úklid podle aktuálních potřeb vedoucí/zástupce vedoucí koleje a to včetně úklidu o víkendu. Při úklidu je potřeba používat úklidové, čistící a desinfekční prostředky vhodné pro daný předmět úklidu a dodržovat návody na použití příslušných úklidových, čistících a desinfekčních prostředků a bezpečnostní a hygienická pravidla
A3: Definice pojmů:
A4: Zametání | B4: pomocí vhodného smetáku zamést dané podlahové plochy.
A5: Vytírání | B5: pomocí mopu za použití vody a odpovídajícího saponátu vytřít dané podlahové plochy.
A6: Mytí | B6: pomocí hadru, utěrky nebo houbičky, za použití vody a odpovídajícího saponátu, umýt plochy nábytku, dveří, spotřebičů, keramických a jiných obkladů, topení apod.
A7: Čištění | B7: důkladné čištění, zvláště skvrn, za pomocí odpovídajících čisticích prostředků, ploch nábytku, dveří, spotřebičů, keramických a jiných obkladů, topení apod.
A8: Desinfekce | B8: po umytí nebo vyčištění daných ploch, podlah, spotřebičů aj. použít podle návodu odpovídající desinfekční prostředek.
A9: Leštění | B9: leštění všech skleněných a zrcadlových ploch za použití odpovídajícího přípravku na mytí a leštění skel.
A10: Luxování | B10: čištění podlah za použití vysavače.
A11: Strojové čištění | B11: se provádí za použití čistícího stroje na vodní nebo parní bázi (strojové čištění postelí, matrací, koberců apod.).
A12: Stírání prachu | B12: setření prachu vhodnou utěrkou za použití odpovídajícího přípravku na odstranění prachu, odstranění pavučin.
A13: Úklid odpadů | B13: řádné uvolnění, umytí, vyčištění a vydesinfikování odpadů na soc. zařízeních, WC, umývárnách a sprchových koutech za použití odpovídajících přípravků.
A14: Mimořádný úklid | B14: úklid znečištěného WC (mimo mísu), umývárny nebo společných prostor zvratky nebo exkrementy (uklízečka vyrozumí vedoucí/zástupce vedoucí koleje).
A15: Mytí oken | B15: umytí parapetů na mokro za použití odpovídajícího saponátu, umytí rámů oken na mokro za použití odpovídajícího saponátu, umytí a vyleštění oken odpovídajícím přípravkem na mytí a leštění oken.
A16: Zalévání květin | B16: zalití květin čistou odstátou vodou v přiměřeném množství s ohledem na druh rostliny. Podle potřeby použít odpovídající hnojivo v dávkování podle návodu k použití.
A17: Vynášení a likvidace odpadu | B17: vynesení odpadu ze všech odpadních nádob (i z prostoru okolo těchto nádob), a ze skartovaček, umytí odpadních nádob a doplnění pytlů na odpadky do odpadních nádob. Odpad dle možnosti vhodným způsobem třídit.
A18: Doplňování hotelových potřeb | B18: v hotelovém provozu doplnit toaletní papír do zásobníků doplnit ručníky a hotelové mýdlo.
A20: Číslo typové činnosti | B20: Popis typových pracovních činností:
A21: 1. | B21: Úklidem společných prostor, podlah chodeb, schodišť a vestibulu se rozumí: zamést a vytřít podlahy, odstranit našlapané žvýkačky a jiné nečistoty, vyluxovat podlahy kryté kobercem. Umýt parapety, zábradlí a hasicí přístroje umístěné na chodbách, vyleštit skleněné plochy na chodbách a ve vestibulech, setřít prach a pavučiny. Sepsat a nahlásit vedení koleje všechny závady a škody.
A22: 2. | B22: Úklidem balkonů se rozumí: zamést a vytřít podlahy, odstranit našlapané žvýkačky a jiné nečistoty, umýt parapety a zábradlí. Odstranit pavučiny. Vynést odpady a popř. i vysypat popelníky.
A23: 3. | B23: Úklidem společenských, (studoven, kluboven apod.) zájmových (posiloven, tělocvičen apod.) a zasedacích místností, kanceláří, skladů a šaten se rozumí: zamést a vytřít podlahy, podlahy pokryté kobercem vyluxovat, setřít prach a pavučiny ze všech dosažitelných a volně přístupných míst a zařízení místností (topení, cvičební nářadí apod.), umýt a vyčistit skvrny kolem klik, dveří, vypínačů a světel. Srovnat nábytek a jiné vybavení místností. Srovnat nebo dověsit záclony a závěsy. Vyleštit zrcadla. Vynést odpad. Sepsat a nahlásit vedení koleje všechny závady a škody.
A24: 4. | B24: Úklidem prádelen se rozumí: zamést a vytřít podlahy, setřít prach a pavučiny ze všech dosažitelných a volně přístupných míst a zařízení místností (praček, topení, apod.). Vyčistit filtry praček, vyčistit zásobníky na prášek. Umýt a vyčistit dveře, kliky, vypínače a světla. Srovnat nebo dověsit záclony a závěsy. Vyleštit zrcadla. Vynést odpad. Sepsat a nahlásit vedení koleje všechny závady a škody.
A25: 5. | B25: Úklidem kuchyněk se rozumí: umýt, vyčistit a vydesinfikovat sporák, vařič, mikrovlnnou troubu, digestoř, pracovní desky a zařízení místnosti kuchyňky. Umýt, vyčistit a vydesinfikovat obklady. Pokud je kuchyňka vybavena nádobím umýt nádobí. Odmrazit a vyčistit lednici. Odstranit všechny prošlé nebo kazící se potraviny. Zamést a vytřít podlahy. Vynést odpad. Setřít prach a pavučiny. Sepsat a nahlásit vedení koleje všechny závady a škody.
A26: 6. | B26: Generálním úklidem pokojů po odchodu studentů se rozumí: umýt nábytek z venku (postele, stoly, židle, police, skříně apod.) i zevnitř (skříně, šuplíky, peřináče, postele apod.) a vyčistit od skvrn. Vyleštit zrcadla a okna. Vyluxovat/strojově vyčistit matrace postelí. Setřít prach a pavučiny (včetně žaluzií). Umýt a vyčistit veškeré obložení, lišty, obrazy, dveře, kliky, rámy oken, parapety, vypínače, zásuvky, topení, světla, lampičky apod. Umýt ledničku zevnitř i zvenku. Zamést a vytřít podlahy, podlahy kryté kobercem vyluxovat, a to i pod a za postelí, křesly a závěsy. Srovnat nebo dověsit záclony a závěsy, srovnat nábytek a jiné vybavení pokoje. Vynést odpad, umýt, otřít a vyleštit odpadkový koš. Zlikvidovat případné komáry a mouchy. Vyvětrat a popř. i navonět. Sepsat a nahlásit vedení koleje všechny závady a škody. Případné nalezené věci po ubytovaných předat vedení koleje.
A27: 7. | B27: Úklidem předsíní buněk se rozumí: úklid sociálního zařízení podle bodu 14. a 15. úklid kuchyňky podle bodu 5. Zamést a vytřít podlahy. Umýt a vyčistit pracovní plochy a nábytek. Setřít prach a pavučiny. Vynést odpad. Sepsat a nahlásit vedení koleje všechny závady a škody.
A28: 8. | B28: Úklidem hotelových pokojů po vystěhování se rozumí: umýt nábytek z venku (postele, stoly, židle, police, skříně apod.) i zevnitř (skříně, šuplíky, peřináče, postele apod.) a vyčistit od skvrn. Vyleštit zrcadla a okna. Převléct a ustlat postele, vyluxovat/strojově vyčistit matrace postelí. Setřít prach a pavučiny (včetně žaluzií). Umýt a vyčistit veškeré obložení, lišty, obrazy, dveře, kliky, rámy oken, parapety, vypínače, zásuvky, televizi, topení, světla, lampičky apod. Umýt nádobí. Umýt ledničku zevnitř i zvenku. Zamést a vytřít podlahy, podlahy kryté kobercem vyluxovat, a to i pod a za postelí, křesly a závěsy. Srovnat nebo dověsit záclony a závěsy, srovnat nábytek a jiné vybavení pokoje. Vynést odpad, umýt, otřít a vyleštit odpadkový koš. Zlikvidovat případné komáry a mouchy. Doplnit hotelové potřeby. Vyvětrat a popř. i navonět. Předat složené použité prádlo a ručníky skladní. Sepsat a nahlásit vedení koleje všechny závady a škody. Případné nalezené věci po hostech předat vedení koleje.
A29: 9. | B29: Úklidem hotelových pokojů v průběhu ubytování se rozumí: ustlání postelí, popř. výměna ložního prádla každý 4. den pobytu, výměna osušek a ručníků, doplnění toaletního papíru, vynesení odpadků, umytí koupelny (sprchový kout, WC, umyvadlo), vytření podlahy.
A30: 10. | B30: Přebráním uklizeného pokoje po studentech se rozumí: podle bodu 6. a 7. zkontrolovat úklid provedený studenty. Přebrat klíče od pokoje. Podepsat potvrzení o řádně provedeném úklidu a odevzdání klíčů. Sepsat a nahlásit vedení koleje všechny závady a škody. V případě nutnosti upozornit studenty na nedostatky v úklidu s tím, že je musí ve stanovené době odstranit, po té provést novou kontrolu úklidu. V případě, že ani napodruhé nebude pokoj řádně uklizen nahlásit tuto skutečnost vedení koleje.
A31: 11. | B31: Úklidem výtahu se rozumí: zametení a vytření podlahy, vyčištění dveřních drážek, mytí stěn, mytí světel, jsou li instalována vyleštění zrcadel.
A32: 12. | B32: Mytím oken se rozumí: mytí a leštění skel, mytí rámů, mytí parapetu, jsou-li instalovány setření žaluzií.
A33: 13. | B33: Čištěním matrací: vyčištění matrací parním strojem.
A34: 14. | B34: Úklidem WC se rozumí: umýt, vyčistit a vydesinfikovat místnost WC, umýt záchodovou mísu zevnitř i zvenku umýt nohu a trubku za WC, umýt prkýnko a nádobu na splachovací vodu, popř. umýt pisoáry, umyvadla, baterie, obklady, odpady, podlahy a dveře. Otřít držák na toaletní papír. Umýt dlaždičky a silikon od plísně. Vylít vodu a otřít pouzdro na WC štětku. Vyleštit zrcadla. Vynést odpad. Setřít prach a pavučiny. Vždy za použití odpovídajícího mycího/čistícího přípravku.
A35: 15. | B35: Úklidem koupelen a sprch se rozumí: umýt, vyčistit a vydesinfikovat umyvadlo zevnitř i zvenku včetně trubek pod ním, baterie, sprchový kout, obklady, poličku nad umyvadlem i ve sprchovém koutě, odpady, podlahy a dveře. Umýt stěny sprchového koutu, gumové těsnění popř. závěs sprchového koutu. Odstranit rez a vodní kámen. Vynést odpad. Vyleštit zrcadlo, poličku, sprchu a držák na sprchu. Umýt dlaždičky a silikon od plísně. Vynést odpad. Setřít prach a pavučiny. Vždy za použití odpovídajícího mycího/čistícího přípravku
